Workbook

Sheet Intro & Contents
B3: Structural Methods and Ratiocination Techniques
B4: (SMART)
B5: Beam-Columns
B7: TABLE OF CONTENTS
H20: Click on Button to go to sheet
B24: Note: This Workbook is intended to provide simplified and automated methods of airframe structural analysis.
B27: Rev A - Previous method found V, M, q, and y at b and then used equations for going from b to L to get unknown quantities. However, this
C28: gives slightly incorrect answers. Revised to correctly use formulas for finding quantities at point b going from A for each q and y,
C29: and from B back to b to for each q and y to find unknown quantities.

Sheet Comp Force
A1: Concentrated Intermediate Load
A3: L | B3: 20
A4: a | B4: 8 | I4: sin | J4: cos | K4: 1 - cos | L4: kx - sin
A5: P | B5: 5000 | G5: k | H5: =SQRT(B5/(B7*B8)) -> 0.01177693743
A6: W | B6: 12000 | G6: kL | H6: =H5*B3 -> 0.2355387486 | I6: =SIN(H6) -> 0.2333668924 | J6: =COS(H6) -> 0.9723887564 | K6: =1-J6 -> 0.02761124362 | L6: =H6-I6 -> 0.002171856164
A7: E | B7: 10300000 | C7: psi | G7: k(L-a) | H7: =H5*(B3-B4) -> 0.1413232491 | I7: =SIN(H7) -> 0.1408532946 | J7: =COS(H7) -> 0.990030479 | K7: =1-J7 -> 0.009969520969 | L7: =H7-I7 -> 0.000469954582
A8: I | B8: 3.5 | C8: in4 | G8: ka | H8: =H5*B4 -> 0.09421549943 | I8: =SIN(H8) -> 0.09407617635 | J8: =COS(H8) -> 0.9955650019
A10: Point A at left end | H10: =B4 -> 8 | I10: =(E11-E12*B5)*I8/H5 -> 57857.05218 | J10: =IF(I10=I13,H10,0) -> 8
D11: RA | E11: =B6*(B3-B4)/B3 -> 7200 | H11: =PI()/(2*H5) -> 133.3790161 | I11: =IF(AND(H10>B3/2,H10>H11),B6*I7/(H5*I6),0) -> 0 | J11: =IF(I11=I13,H11,0) -> 0
D12: qA | E12: =-B6/B5*(I7/I6-(B3-B4)/B3) -> -0.008568404277
D13: Mmax | E13: =I13 -> 57857.05218 | F13: @ x = | G13: =J13 -> 8 | I13: =MAX(I10:I11) -> 57857.05218 | J13: =J10+J11 -> 8
D16: RA | E16: =B6*(I6*(1-J7)-J6*(H7-I7))/(I6*(1-J6)-J6*(H6-I6)) -> 5179.289831
D17: qA | E17: =-B6/B5*(L6*K7-K6*L7)/(I6*K6-J6*L6) -> -0.004807209371
D18: MB | E18: =-B6/H5*(H6*SIN(H5*B4)-H5*B4*I6)/(I6-H6*J6) -> -40414.20337
D19: Ma | E19: =(E16-E17*B5)*I8/H5 -> 41565.05084
D21: RA | E21: =B6*(K6*K7-I6*L7)/(K6^2-I6*L6) -> 7776.383741 | J21: MA | K21: =-B6/H5*(L6*K7-K6*L7)/(K6^2-I6*L6) -> -34595.83682
D22: qA | E22: 0 | H22: =B4 -> 8 | I22: =K21*COS(H5*H22)+E21*SIN(H$5*H22)/H$5 -> 27676.6697 | J22: MB | K22: =K21+E21*B3-B6*(B3-B4) -> -23068.162
D23: Mmax (-) | E23: =MIN(K21:K22) -> -34595.83682 | H23: =B3/2 -> 10 | I23: =K21*COS(H5*H23)+E21*SIN(H5*H23)/H5-B6*SIN(H5*(H23-B4))/H5 -> 19230.22355
D24: Mmax (+) | E24: =MAX(I22:I24) -> 27676.6697 | H24: =B3-B4 -> 12 | I24: =K21*COS(H5*H24)+E21*SIN(H5*H24)/H5-B6*SIN(H5*(H24-B4))/H5 -> 10773.10926
D27: RB | E27: =B6 -> 12000
D28: qA | E28: =B6/B5*K7/J6 -> 0.02460625976
D29: Mmax | E29: =-B6/H5*(I6*K7+J6*I7)/J6 -> -145959.0812

Sheet Comp Moment
A1: Concentrated Intermediate Moment
A3: L | B3: 1305.654
A4: a | B4: 0 | I4: sin | J4: cos | K4: 1 - cos | L4: kx - sin
A5: P | B5: 60607 | G5: k | H5: =SQRT(B5/(B7*B8)) -> 0.001953031664
A6: M0 | B6: 30303.5 | G6: kL | H6: =H5*B3 -> 2.549983605 | I6: =SIN(H6) -> 0.5576973262 | J6: =COS(H6) -> -0.8300443918 | K6: =1-J6 -> 1.830044392 | L6: =H6-I6 -> 1.992286279
A7: E | B7: 80000 | C7: psi | G7: k(L-a) | H7: =H5*(B3-B4) -> 2.549983605 | I7: =SIN(H7) -> 0.5576973262 | J7: =COS(H7) -> -0.8300443918 | K7: =1-J7 -> 1.830044392 | L7: =H7-I7 -> 1.992286279
A8: I | B8: 198616 | C8: in4 | G8: ka | H8: =H5*B4 -> 0 | I8: =SIN(H8) -> 0 | J8: =COS(H8) -> 1
D11: RA | E11: =-B6/B3 -> -23.2094414
D12: qA | E12: =B6/(B5*B3)*(H6*J7/I6-1) -> -0.00183633944 | I12: =B4 -> 0 | J12: =E11*I8/H5-E12*B5*I8/H5 -> 0 | K12: =J12+B6 -> 30303.5
D13: Mmax (-) | E13: =MIN(J12:K12) -> 0
D14: Mmax (+) | E14: =MAX(J12:K12) -> 30303.5
D17: RA | E17: =-B6*H5*(COS(H5*B4)-J6)/(I6-H6*J6) -> -40.49991178 | I17: =B4 -> 0 | J17: =(E17-E18*B5)/H5*I8 -> 0 | K17: =J17+B6 -> 30303.5 | L17: =B6*(I6-H6*J8)/(I6-H6*J6) -> -22575.37182
D18: qA | E18: =-B6*H5/B5*(K6*K7-L6*I7)/(I6*K6-J6*L6) -> -0.0008171915671
D19: Mmax (-) | E19: =MIN(J17:L17) -> -22575.37182
D20: Mmax (+) | E20: =MAX(J17:L17) -> 30303.5
D23: RA | E23: =-B6*H5*(K6*I7-I6*K7)/(K6^2-I6*L6) -> 0 | J23: MA | K23: =-B6*(K6*K7-L6*I7)/(K6^2-I6*L6) -> -30303.5
D24: qA | E24: 0 | H24: =B4 -> 0 | I24: =K23*J8+E23*I8/H5 -> -30303.5 | J24: MB | K24: =E23*B3+K23+B6 -> 0
D25: Mmax (-) | E25: =MIN(I24:I25) -> -30303.5 | H25: 14 | I25: =I24+B6 -> 0
D26: Mmax (+) | E26: =MAX(I24:I25) -> 0
D29: RB | E29: 0
D30: qA | E30: =-B6*H5/B5*I7/J6 -> 0.0006561098106
D31: Mmax | E31: =B6*COS(H5*B4)/J6 -> -36508.28835

Sheet Comp Distributed
A1: Distributed Load
A3: L | B3: 10 | AE3: x | AF3: kx | AG3: k*sin | AH3: cos | AI3: x-a | AJ3: k(x-a) | AK3: cos | AL3: sin | AM3: V | AN3: V'
A4: a | B4: 0 | C4: Case 1 | J4: W | K4: =B12*(B6+B7)/2 -> 2000 | M4: Q | N4: =B13/B12 -> 0 | O4: (wb-wa)/(b - a) | AE4: =B4+B12/2 -> 5 | AF4: =N$5*AE4 -> 0.2698435361 | AG4: =N$5*SIN(AF4) -> 0.01438701241 | AH4: =COS(AF4) -> 0.9638126184 | AI4: =AE4-B$4 -> 5 | AJ4: =N$5*AI4 -> 0.2698435361 | AK4: =COS(AJ4) -> 0.9638126184 | AL4: =SIN(AJ4) -> 0.2665806381 | AM4: =AC$9*AH4-B$6*AL4/N$5-N$4*(1-AK4)/N$5^2 -> 0 | AN4: =-AC$9*AG4-B$6*AK4-N$4*AL4/N$5 -> -207.5092152
A5: b | B5: 10 | J5: RA | K5: =K4*(B3-B14)/B3 -> 1000 | M5: k | N5: =SQRT(B8/(B9*B10)) -> 0.05396870722 | AE5: =AE4-AM4/AN4 -> 5 | AF5: 0.2698435361 | AG5: 0.01438701241 | AH5: 0.9638126184 | AI5: 5 | AJ5: 0.2698435361 | AK5: 0.9638126184 | AL5: =SIN(AJ5) -> 0.2665806381 | AM5: =AC$9*AH5-B$6*AL5/N$5-N$4*(1-AK5)/N$5^2 -> 0 | AN5: =-AC$9*AG5-B$6*AK5-N$4*AL5/N$5 -> -207.5092152
A6: wa | B6: 200 | J6: RB | K6: =K4-K5 -> 1000 | AE6: 5 | AF6: 0.2698435361 | AG6: 0.01438701241 | AH6: 0.9638126184 | AI6: 5 | AJ6: 0.2698435361 | AK6: 0.9638126184 | AL6: 0.2665806381 | AM6: 0 | AN6: -207.5092152
A7: wb | B7: 200 | J7: qA | K7: =Calcs1!S39 -> -0.0166668406 | AE7: 5 | AF7: 0.2698435361 | AG7: 0.01438701241 | AH7: 0.9638126184 | AI7: 5 | AJ7: 0.2698435361 | AK7: 0.9638126184 | AL7: 0.2665806381 | AM7: 0 | AN7: -207.5092152
A8: P | B8: 1500 | J8: qB | K8: =Calcs1!S40 -> -0.0166668406 | AE8: 5 | AF8: 0.2698435361 | AG8: 0.01438701241 | AH8: 0.9638126184 | AI8: 5 | AJ8: 0.2698435361 | AK8: 0.9638126184 | AL8: 0.2665806381 | AM8: 0 | AN8: -207.5092152
A9: E | B9: 10300000 | C9: psi | J9: Mmax | K9: =AC11 -> 2578.163869 | L9: @ x = | M9: =AC12 -> 5 | AA9: (RA - qA*P) | AC9: =K5-K7*B8 -> 1025.000261 | AE9: 5 | AF9: 0.2698435361 | AG9: 0.01438701241 | AH9: 0.9638126184 | AI9: 5 | AJ9: 0.2698435361 | AK9: 0.9638126184 | AL9: 0.2665806381 | AM9: 0 | AN9: -207.5092152
A10: I | B10: 0.05 | C10: in4 | N10: wa/k | O10: =B6/N5 -> 3705.851229 | AC10: =AC9*SIN(AF10)/N5-B6*(1-AK10)/N5^2-N4*(AJ10-AL10)/N5^3 -> 2578.163869 | AE10: 5 | AF10: 0.2698435361 | AG10: 0.01438701241 | AH10: 0.9638126184 | AI10: 5 | AJ10: 0.2698435361 | AK10: 0.9638126184 | AL10: 0.2665806381 | AM10: 0 | AN10: -207.5092152
N11: Q/k2 | O11: =N4/N5^2 -> 0 | AB11: Mmax | AC11: =IF(AC9<0,"NA",AC10) -> 2578.163869
A12: b - a | B12: =B5-B4 -> 10 | AB12: x | AC12: =IF(AC2<0,"NA",AE10) -> 5
A13: wb-wa | B13: =B7-B6 -> 0 | C13: Case 2
A14: Xcg | B14: =(B6*(B5+2*B4)+B7*(2*B5+B4))*B12/(6*K4) -> 5 | J14: RA | K14: =Calcs1!K53 -> 747.5395205 | Z14: =T14-V14-X14 -> 0
J15: RB | K15: =K4-K14 -> 1252.46048 | Q15: 3
J16: qA | K16: =Calcs1!N53 -> -0.008210180487 | Q16: 11
J17: MB | K17: =Calcs1!N54 -> -2524.604795 | AE17: x | AF17: kx | AG17: k*sin | AH17: cos | AI17: x-a | AJ17: k(x-a) | AK17: cos | AL17: sin | AM17: V | AN17: V'
J18: Mmax (+) | K18: =AC28 -> 1428.58761 | L18: @ x = | M18: =AC29 -> 3.74733472 | AE18: =B4+B12/2 -> 5 | AF18: =N$5*AE18 -> 0.2698435361 | AG18: =N$5*SIN(AF18) -> 0.01438701241 | AH18: =COS(AF18) -> 0.9638126184 | AI18: =AE18-B$4 -> 5 | AJ18: =N$5*AI18 -> 0.2698435361 | AK18: =COS(AJ18) -> 0.9638126184 | AL18: =SIN(AJ18) -> 0.2665806381 | AM18: =AC$19*AH18-B$6*AL18/N$5-N$4*(1-AK18)/N$5^2 -> -255.5505494 | AN18: =-AC$19*AG18-B$6*AK18-N$4*AL18/N$5 -> -203.694564
AA19: (RA - qA*P) | AC19: =K14-K16*B8 -> 759.8547912 | AE19: =AE18-AM18/AN18 -> 3.745422831 | AF19: 0.2021356282 | AG19: 0.01083486204 | AH19: 0.9796400593 | AI19: 3.745422831 | AJ19: 0.2021356282 | AK19: 0.9796400593 | AL19: 0.200761934 | AM19: =AC$19*AH19-B$6*AL19/N$5-N$4*(1-AK19)/N$5^2 -> 0.3903329778 | AN19: =-AC$19*AG19-B$6*AK19-N$4*AL19/N$5 -> -204.1609337
AE20: 3.74733472 | AF20: 0.2022388104 | AG20: 0.01084031721 | AH20: 0.9796193391 | AI20: 3.74733472 | AJ20: 0.2022388104 | AK20: 0.9796193391 | AL20: 0.2008630143 | AM20: -1.385274118e-09 | AN20: -204.1609348
C21: Case 3 | D21: Both ends fixed | AE21: 3.74733472 | AF21: 0.2022388104 | AG21: 0.01084031721 | AH21: 0.9796193391 | AI21: 3.74733472 | AJ21: 0.2022388104 | AK21: 0.9796193391 | AL21: 0.2008630143 | AM21: 1.136868377e-13 | AN21: -204.1609348
AE22: 3.74733472 | AF22: 0.2022388104 | AG22: 0.01084031721 | AH22: 0.9796193391 | AI22: 3.74733472 | AJ22: 0.2022388104 | AK22: 0.9796193391 | AL22: 0.2008630143 | AM22: 0 | AN22: -204.1609348
J23: RA | K23: =Calcs1!R60 -> 1000 | AE23: 3.74733472 | AF23: 0.2022388104 | AG23: 0.01084031721 | AH23: 0.9796193391 | AI23: 3.74733472 | AJ23: 0.2022388104 | AK23: 0.9796193391 | AL23: 0.2008630143 | AM23: 0 | AN23: -204.1609348
J24: RB | K24: =K4-K23 -> 1000 | AE24: 3.74733472 | AF24: 0.2022388104 | AG24: 0.01084031721 | AH24: 0.9796193391 | AI24: 3.74733472 | AJ24: 0.2022388104 | AK24: 0.9796193391 | AL24: 0.2008630143 | AM24: 0 | AN24: -204.1609348
J25: MA | K25: =Calcs1!M62 -> -1674.8138 | AE25: 3.74733472 | AF25: 0.2022388104 | AG25: 0.01084031721 | AH25: 0.9796193391 | AI25: 3.74733472 | AJ25: 0.2022388104 | AK25: 0.9796193391 | AL25: 0.2008630143 | AM25: 0 | AN25: -204.1609348
J26: MB | K26: =Calcs1!P62 -> -1674.8138 | AE26: 3.74733472 | AF26: 0.2022388104 | AG26: 0.01084031721 | AH26: 0.9796193391 | AI26: 3.74733472 | AJ26: 0.2022388104 | AK26: 0.9796193391 | AL26: 0.2008630143 | AM26: 0 | AN26: -204.1609348
J27: Mmax (+) | K27: =AC44 -> 840.4673833 | L27: @ x = | M27: =AC45 -> 5 | AC27: =AC19*SIN(AF27)/N5-B6*(1-AK27)/N5^2-N4*(AJ27-AL27)/N5^3 -> 1428.58761 | AE27: 3.74733472 | AF27: 0.2022388104 | AG27: 0.01084031721 | AH27: 0.9796193391 | AI27: 3.74733472 | AJ27: 0.2022388104 | AK27: 0.9796193391 | AL27: 0.2008630143 | AM27: 0 | AN27: -204.1609348
AB28: Mmax | AC28: =IF(AC19<0,"NA",AC27) -> 1428.58761
AB29: x | AC29: =IF(AC19<0,"NA",AE27) -> 3.74733472
C31: Case 4 | D31: Cantilever (right end fixed)
AE33: x | AF33: kx | AG33: k*sin | AH33: cos | AI33: x-a | AJ33: k(x-a) | AK33: cos | AL33: sin | AM33: V | AN33: V'
J34: RB | K34: =K4 -> 2000 | AE34: =B4+B12/2 -> 5 | AF34: =N$5*AE34 -> 0.2698435361 | AG34: =N$5*SIN(AF34) -> 0.01438701241 | AH34: =COS(AF34) -> 0.9638126184 | AI34: =AE34-B$4 -> 5 | AJ34: =N$5*AI34 -> 0.2698435361 | AK34: =COS(AJ34) -> 0.9638126184 | AL34: =SIN(AJ34) -> 0.2665806381 | AM34: =AC$35*AH34-K$25*N$5*SIN(AF34)-B$6*AL34/N$5-N$4*(1-AK34)/N$5^2 -> -3.069544618e-12 | AN34: =-AC$35*N$5*SIN(AF34)-K$25*N$5^2*AH34-B$6*AK34-N$4*AL34/N$5 -> -202.4479633
J35: qA | K35: =Calcs1!P82 -> 0.0743572671 | AA35: (RA - qA*P) | AC35: =K23 -> 1000 | AE35: =AE34-AM34/AN34 -> 5 | AF35: 0.2698435361 | AG35: 0.01438701241 | AH35: =COS(AF35) -> 0.9638126184 | AI35: =AE35-B$4 -> 5 | AJ35: 0.2698435361 | AK35: =COS(AJ35) -> 0.9638126184 | AL35: =SIN(AJ35) -> 0.2665806381 | AM35: -2.273736754e-13 | AN35: -202.4479633
J36: yA | K36: =Calcs1!P83 -> -0.5477494969 | AE36: =AE35-AM35/AN35 -> 5 | AF36: 0.2698435361 | AG36: 0.01438701241 | AH36: =COS(AF36) -> 0.9638126184 | AI36: 5 | AJ36: 0.2698435361 | AK36: 0.9638126184 | AL36: =SIN(AJ36) -> 0.2665806381 | AM36: 0 | AN36: -202.4479633
J37: MB | K37: =Calcs1!L66 -> -10000 | AE37: 5 | AF37: 0.2698435361 | AG37: 0.01438701241 | AH37: 0.9638126184 | AI37: 5 | AJ37: 0.2698435361 | AK37: 0.9638126184 | AL37: 0.2665806381 | AM37: 0 | AN37: -202.4479633
AE38: 5 | AF38: 0.2698435361 | AG38: 0.01438701241 | AH38: 0.9638126184 | AI38: 5 | AJ38: 0.2698435361 | AK38: 0.9638126184 | AL38: 0.2665806381 | AM38: 0 | AN38: -202.4479633
AE39: 5 | AF39: 0.2698435361 | AG39: 0.01438701241 | AH39: 0.9638126184 | AI39: 5 | AJ39: 0.2698435361 | AK39: 0.9638126184 | AL39: 0.2665806381 | AM39: 0 | AN39: -202.4479633
AE40: 5 | AF40: 0.2698435361 | AG40: 0.01438701241 | AH40: 0.9638126184 | AI40: 5 | AJ40: 0.2698435361 | AK40: 0.9638126184 | AL40: 0.2665806381 | AM40: 0 | AN40: -202.4479633
AE41: 5 | AF41: 0.2698435361 | AG41: 0.01438701241 | AH41: 0.9638126184 | AI41: 5 | AJ41: 0.2698435361 | AK41: 0.9638126184 | AL41: 0.2665806381 | AM41: 0 | AN41: -202.4479633
AE42: 5 | AF42: 0.2698435361 | AG42: 0.01438701241 | AH42: 0.9638126184 | AI42: 5 | AJ42: 0.2698435361 | AK42: 0.9638126184 | AL42: 0.2665806381 | AM42: 0 | AN42: -202.4479633
AC43: =K25*AH43+(AC35*SIN(AF43)-O10*(1-AK43)-O11*(AJ43-AL43))/N5 -> 840.4673833 | AE43: 5 | AF43: 0.2698435361 | AG43: 0.01438701241 | AH43: 0.9638126184 | AI43: 5 | AJ43: 0.2698435361 | AK43: 0.9638126184 | AL43: 0.2665806381 | AM43: 0 | AN43: -202.4479633
AB44: Mmax | AC44: =IF(AC19<0,"NA",AC43) -> 840.4673833
AB45: x | AC45: =IF(AC19<0,"NA",AE43) -> 5
D69: For a =0, b = L, wL = wa | G69: q = wa | H69: - uniformly distributed load over entire length
D71: Case 2
E72: 1/k | F72: =1/N5 -> 18.52925615 | G72: K
E73: a | F73: =B3*N5 -> 0.5396870722
E74: a/2 | F74: =F73/2 -> 0.2698435361
E75: tan(a/2) | F75: =TAN(F74) -> 0.2765896949
E76: M_end | F76: =B6*B3^2*(1/F73*F75-0.5)/(1-F73/TAN(F73)) -> 2524.604795 | G76: (-)
E78: U | F78: =B6*F72^2-F76 -> 66142.06187
E79: V | F79: =B6*F72^2*F75+F76/TAN(F73) -> 23207.16104
E81: j0 | F81: =ATAN(F79/F78) -> 0.3374482619
E82: cos(j0) | F82: =COS(F81) -> 0.943602567
E84: M_max (+) | F84: =B6*F72^2*(1/F82-1)-F76/F82 -> 1428.58761
E86: @ x = | F86: =B3-F72*F81 -> 3.74733472

Sheet Comp Special
M2: P | N2: 35000 | O2: pounds | Q2: k | R2: =SQRT(N2/(N3*N4)) -> 0.03115884764
M3: E | N3: 10300000 | O3: psi | U3: In "Airframe Stress Analysis and Sizing", M.C.Y. Niu, 3rd Ed., Hong Kong Conmilit Press Ltd., Figure 10.6.7, there are 20 Cases. The following compares the order of the Niu cases to the order of the Special Cases. | AA3: Case 1 | AC3: sin | AD3: cos | AE3: 1-cos | AF3: kx - sin | AG3: Fa4
M4: I | N4: 3.5 | O4: in4 | AA4: kL | AB4: =R2*N5 -> 0.6231769528 | AC4: =SIN(AB4) -> 0.5836178775 | AD4: =COS(AB4) -> 0.8120284312 | AE4: =1-AD4 -> 0.1879715688 | AF4: =AB4-AC4 -> 0.03955907538 | AG4: =AB4^2/2-AE4 -> 0.006203188494
M5: L | N5: 20 | O5: in | AA5: W | AB5: =N8*N5 -> 4000 | AD5: (RA - qA*P) | AE5: =P8-Q8*N2 -> 2067.341331
L7: Case | P7: R0 | Q7: qL (or qR) | R7: Mmax | AA7: Case 3 | AC7: sin | AD7: cos | AE7: 1-cos | AF7: kx - sin | AG7: Fa4
L8: 1 | M8: w | N8: 200 | O8: 1 | P8: =AB5/2 -> 2000 | Q8: =(N8*AG4/R2-P8*AF4)/(AC4*N2) -> -0.00192403802 | R8: =AE5*AC18/R2-N8*AE18/R2^2 -> 10421.15697 | U8: Niu | V8: Special | X8: Special | Y8: Niu | AA8: k*(L - a) | AB8: =R2*(N5-N11) -> 0.5297004099 | AC8: =SIN(AB8) -> 0.5052748301 | AD8: =COS(AB8) -> 0.8629584846 | AE8: =1-AD8 -> 0.1370415154 | AF8: =AB8-AC8 -> 0.02442557984 | AG8: =AB8^2/2-AE8 -> 0.003249746701
L9: 2 | M9: W | N9: 500 | O9: 2 | P9: =N9/2 -> 250 | Q9: =-N9/N2*(AC18/AC4-0.5) -> -0.0003613438615 | R9: =(P9-Q9*N2)*AC18/R2 -> 2584.176663 | U9: 1 | V9: 1 | X9: 1 | Y9: 1 | AD9: (RA - qA*P) | AE9: =P11-Q11*N2 -> 432.8815562
L10: 3 | M10: W | N10: 500 | U10: 2 | V10: 17 | X10: 2 | Y10: 5 | AA10: =IF(N11>PI()/(2*R2),PI()/(2*R2),N11) -> 3 | AB10: =R2*AA10 -> 0.09347654293 | AC10: =SIN(AB10) -> 0.0933404715 | AD10: =COS(AB10) -> 0.9956342483 | AE10: =1-AD10 -> 0.004365751704 | AF10: =AB10-AC10 -> 0.0001360714255 | AG10: =AB10^2/2-AE10 -> 3.180334757e-06
M11: a | N11: 3 | O11: 3 | P11: =N10*(N5-N11)/N5 -> 425 | Q11: =-N10/N2*(AC8/AC4-(N5-N11)/N5) -> -0.0002251873208 | R11: =(AE9*AC10-N10*AC11)/R2 -> 1296.754265 | U11: 3 | V11: DL Case 1 | X11: 3 | Y11: 7 | AA11: =AA10-N11 -> 0 | AB11: =R2*AA11 -> 0 | AC11: =SIN(AB11) -> 0 | AD11: =COS(AB11) -> 1 | AE11: =1-AD11 -> 0 | AF11: =AB11-AC11 -> 0 | AG11: =AB11^2/2-AE11 -> 0
L12: 4 | M12: w | N12: 200 | O12: 4 | P12: =AC13*(N5-AE13)/N5 -> 666.6666667 | Q12: =-N12/(R2*N2)*(AF4/(AB4*AC4)-R2*N5/6) -> -0.0008998006666 | R12: =N12/R2^2*(AC15/AC4-AB15/N5) -> 8026.576993 | U12: 4 | V12: 15 | X12: 4 | Y12: 8
L13: 5 | M13: w | N13: 200 | O13: 5 | P13: =AB19/2 -> 1000 | Q13: =(N13*N5/(4*N2)-(P13/N2+2*N13/(N5*R2^2*N2))*AE18)/AD18 -> -0.00120330562 | R13: =((P13-Q13*N2)*AC18-2*N13/(N5*R2^2)*AF18)/R2 -> 6936.157063 | U13: 5 | V13: 2 | X13: 4 | Y13: 9 | AA13: Case 4 | AB13: W | AC13: =N12*N5/2 -> 2000 | AD13: Xcg | AE13: =(N12*(2*N5))*N5/(6*AC13) -> 13.33333333
L14: 6 | M14: w | N14: 200 | O14: 6 | P14: =N14*N5/2 -> 2000 | Q14: ML = MR = | R14: =-N14*(1-AB18/TAN(AB18))/R2^2 -> -6710.219507 | U14: 6 | V14: 16 | X14: 5 | Y14: 17 | AD14: (RA - qA*P) | AE14: =P12-Q12*N2 -> 698.15969
Q15: +M = | R15: =N14*(AB18/AC18-1)/R2^2 -> 3371.479932 | U15: 7 | V15: 3 | X15: 6 | Y15: 12 | AB15: =ACOS(AC4/AB4)/R2 -> 11.49676372 | AC15: =R2*AB15 -> 0.358225909
L16: 7 | M16: W | N16: 500 | O16: 7 | P16: =N16/2 -> 250 | Q16: ML = MR = | R16: =-N16*TAN(AB4/4)/(2*R2) -> -1260.21243 | U16: 8 | V16: 4 | X16: 7 | Y16: 13
Q17: +M = | R17: =-R16 -> 1260.21243 | U17: 9 | V17: 4 | X17: 8 | Y17: 14 | AA17: Case 5 | AC17: sin | AD17: cos | AE17: 1-cos | AF17: kx - sin
L18: 8 | M18: M1 | N18: 1000 | O18: 8 | P18: =-N18/N5 -> -50 | Q18: =N18*(AB4*AD22/AC4-1)/(N2*N5) -> -0.0001122114814 | U18: 10 | V18: 14 | X18: 9 | Y18: 15 | AA18: kL/2 | AB18: =R2*N5/2 -> 0.3115884764 | AC18: =SIN(AB18) -> 0.3065710104 | AD18: =COS(AB18) -> 0.9518477901 | AE18: =1-AD18 -> 0.04815220985 | AF18: =AB18-AC18 -> 0.005017466064
M19: a | N19: 3 | Q19: MaL = | R19: =(P18-Q18*N2)*AC23/R2 -> -138.0165943 | U19: 11 | V19: 13 | X19: 10 | Y19: 16 | AA19: W | AB19: =N5*N13/2 -> 2000
Q20: MaR = | R20: =R19+N18 -> 861.9834057 | U20: 12 | V20: 6 | X20: 11 | Y20: 18
L21: 9 | M21: W | N21: 500 | O21: 9 | P21: =N21*(AC4*AE26-AD4*AF26)/(AC4*AE4-AD4*AF4) -> 15.70908728 | Q21: =-N21*(AF4*AE26-AE4*AF26)/(AC4*AE4-AD4*AF4)/N2 -> -2.709215232e-05 | U21: 13 | V21: 7 | X21: 12 | Y21: 19 | AA21: Case 8 | AC21: sin | AD21: cos | AE21: 1-cos | AF21: kx - sin
M22: a | N22: 3 | Q22: M0 = | R22: =-N21/R2*(AB4*AC27-AB27*AC4)/(AC4-AB4*AD4) -> -1185.818254 | U22: 14 | V22: 8 | X22: 13 | Y22: 11 | AA22: k*(L - a) | AB22: =R2*(N5-N19) -> 0.5297004099 | AC22: =SIN(AB22) -> 0.5052748301 | AD22: =COS(AB22) -> 0.8629584846 | AE22: =1-AD22 -> 0.1370415154 | AF22: =AB22-AC22 -> 0.02442557984
Q23: Ma = | R23: =(P21-Q21*N2)*AC27/R2 -> 270.1165619 | U23: 15 | V23: 9 | X23: 14 | Y23: 10 | AA23: k*a | AB23: =R2*N19 -> 0.09347654293 | AC23: =SIN(AB23) -> 0.0933404715
L24: 10 | M24: w | N24: 200 | O24: 10 | P24: =N24*N5-N24/R2*(AB4*AC4-1+(1-AB4^2/2)*AD4)/(AC4-AB4*AD4) -> 2506.591445 | Q24: =N24/(R2*N2)*(4-2*AB4*AC4-(2-AB4^2/2)*(1+AD4))/(AC4-AB4*AD4) -> 0.0009429514004 | R24: =-N24*N5/R2*(TAN(AB4)*(TAN(AB4/2)-AB4/2))/(TAN(AB4)-AB4) -> -10131.82891 | U24: 16 | V24: 10 | X24: 15 | Y24: 4
L25: 11 | M25: w | N25: 200 | O25: 11 | P25: =N25*N5 -> 4000 | Q25: =N25/(R2*N2)*(AB4/AD4-TAN(AB4)) -> 0.008934195686 | R25: =-N25/(R2^2)*(1+AB4*TAN(AB4)-1/AD4) -> -44579.08221 | U25: 17 | V25: 5 | X25: 16 | Y25: 6 | AA25: Case9 | AC25: sin | AD25: cos | AE25: 1-cos | AF25: kx - sin
L26: 12 | M26: W | N26: 500 | O26: 12 | P26: =N26 -> 500 | Q26: =N26/N2*AE4/AD4 -> 0.003306913924 | R26: =-N26/R2*TAN(AB4) -> -11533.09762 | U26: 18 | V26: 11 | X26: 17 | Y26: 2 | AA26: k*a | AB26: =R2*N22 -> 0.09347654293 | AC26: =SIN(AB26) -> 0.0933404715 | AD26: =COS(AB26) -> 0.9956342483 | AE26: =1-AD26 -> 0.004365751704 | AF26: =AB26-AC26 -> 0.0001360714255
L27: 13 | M27: M1 | N27: 500 | O27: 13 | P27: 0 | Q27: =-N27*R2/N2*AE4/AC4 -> -0.0001433662504 | R27: =N27*AD18-Q27*N2/R2*AC18 -> 525.2940703 | U27: 19 | V27: 12 | X27: 18 | Y27: 20 | AA27: k*(L-a) | AB27: =R2*(N5-N22) -> 0.5297004099 | AC27: =SIN(AB27) -> 0.5052748301 | AD27: =COS(AB27) -> 0.8629584846 | AE27: =1-AD27 -> 0.1370415154 | AF27: =AB27-AC27 -> 0.02442557984
L28: 14 | M28: M1 | N28: 500 | U28: 20 | V28: 18 | X28: DL Case 1 | Y28: 3
M29: M2 | N29: 250 | O29: 14 | P29: =(N29-N28)/N5 -> -12.5 | Q29: =-(N28*R2*AE4+P29*AF4)/(AC4*N2) -> -0.0001191582168 | R29: =AD29 -> 500 | AA29: Case14 | AB29: =ATAN((P29-Q29*N2)/(N28*R2))/R2 -> -15.75725898 | AC29: =IF(AB29>N5,N5,IF(AB29<0,0,AB29)) -> 0 | AD29: =N28*COS(R2*AC29)+(P29-Q29*N2)*SIN(R2*AC29)/R2 -> 500
L30: 15 | M30: w | N30: 200
M31: a | N31: 2.5 | O31: 15 | P31: =N30*(N5-2*N31)/2 -> 1500 | Q31: =(N30*AF32/R2-P31*AE18)/(N2*AD18) -> -0.001759363952 | R31: =(P31-Q31*N2)*AC18/R2-N30*AE32/R2^2 -> 9764.87134 | AA31: Case15 | AC31: sin | AD31: cos | AE31: 1-cos | AF31: kx - sin
L32: 16 | M32: W | N32: 500 | AA32: kb/2 | AB32: =R2*(N5-2*N31)/2 -> 0.2336913573 | AC32: =SIN(AB32) -> 0.2315701127 | AD32: =COS(AB32) -> 0.9728182168 | AE32: =1-AD32 -> 0.02718178322 | AF32: =AB32-AC32 -> 0.002121244595
M33: a | N33: 2 | O33: 16 | P33: =N32 -> 500 | Q33: =-N32/N2*((AC35+AC36)/AC4-1) -> -0.0002588166743 | R33: =(P33-Q33*N2)*AC18/R2-N32*AC37/R2 -> 1049.90828
L34: 17 | M34: w | N34: 100 | AA34: Case16 | AC34: sin | AD34: cos | AE34: 1-cos | AF34: kx - sin
M35: M1 | N35: 5000 | AA35: k(L - a) | AB35: =R2*(N5-N33) -> 0.5608592576 | AC35: =SIN(AB35) -> 0.5319140121 | AD35: =COS(AB35) -> 0.8467983725 | AE35: =1-AD35 -> 0.1532016275 | AF35: =AB35-AC35 -> 0.02894524546
M36: M2 | N36: 1000 | O36: 17 | P36: =AE52 -> 800 | Q36: =AF53 -> -0.002008352976 | R36: =AB73 -> 8553.265506 | T36: =(N36-N35)/N5+N34*N5/2 -> 800 | AA36: ka | AB36: =R2*N33 -> 0.06231769528 | AC36: =SIN(AB36) -> 0.06227736804 | AD36: =COS(AB36) -> 0.9980588807 | AE36: =1-AD36 -> 0.001941119257 | AF36: =AB36-AC36 -> 4.032724652e-05
AA37: k(L/2 - a) | AB37: =R2*(N5/2-N33) -> 0.2492707811 | AC37: =SIN(AB37) -> 0.2466973443
L38: 18 | M38: a | N38: 0.02 | O38: 18 | P38: =N38*N2*R2*AC46/(AE46^2-AC46*AF46) -> 1039.480498 | Q38: 0 | R38: =N38*N2*AC57/(2*(AC57-AB57)) -> 10744.80498
AA39: Case17 | AC39: sin | AD39: cos | AF39: wk^2
AA40: kL | AB40: =R2*N5 -> 0.6231769528 | AC40: =SIN(AB40) -> 0.5836178775 | AD40: =COS(AB40) -> 0.8120284312 | AF40: =N34*R2^2 -> 0.09708737864
AA41: M1 | AB41: =IF(N35>N36,N35,N36) -> 5000
AA42: M2 | AB42: =IF(N35>N36,N36,N35) -> 1000
AA43: kx | AB43: =ATAN(((AB42-AF40)-(AB41-AF40)*AD40)/((AB41-AF40)*AC40)) -> -0.8091680398 | AD43: =COS(AB43) -> 0.6901007724
AE44: Fa3
AC45: sin | AD45: cos | AE45: 1-cos | AF45: kx - sin | AG45: (kx)^2/2-Fa3
AA46: kL | AB46: =R2*N5 -> 0.6231769528 | AC46: =SIN(AB46) -> 0.5836178775 | AD46: =COS(AB46) -> 0.8120284312 | AE46: =1-AD46 -> 0.1879715688 | AF46: =AB46-AC46 -> 0.03955907538 | AG46: =AB46^2/2-AE46 -> 0.006203188494
AB48: =AC46/R2 -> 18.73040634 | AC48: =-AC46/R2 -> -18.73040634 | AE48: =N34*AE46/R2^2 -> 19361.07159 | AF48: =-AD46*N35 -> -4060.142156 | AG48: =AE48+AF48+N36 -> 16300.92943
AB49: =AF46/R2 -> 1.269593659 | AC49: =AB48 -> 18.73040634 | AE49: =N34*AG46/R2^2 -> 638.9284149 | AF49: =-N35*AE46 -> -939.8578439 | AG49: =AE49+AF49 -> -300.9294291
AB52: =MINVERSE(AB48:AC49) -> 0.05 | AC52: 0.05 | AE52: =MMULT(AB52:AC53,AG48:AG49) -> 800
AB53: -0.003389124709 | AC53: 0.05 | AE53: -70.29235416 | AF53: =AE53/N2 -> -0.002008352976
AA56: Case18 | AC56: tan
AA57: Lk/2 | AB57: =N5*R2/2 -> 0.3115884764 | AC57: =TAN(AB57) -> 0.3220798677
AA63: Ra - qa*P | AB63: =AE52-AE53 -> 870.2923542
AA64: w/k+M1/k | AB64: =N34/R2+N35*R2 -> 3365.155545
AA66: kx | AB66: =ATAN(AB63/AB64) -> 0.2530738434
AA67: x | AB67: =AB66/R2 -> 8.122054009
AA69: cos(kx) | AB69: =COS(AB66) -> 0.9681473645
AA70: sin(kx) | AB70: =SIN(AB66) -> 0.2503810708
AB72: =AB63*AB70/R2 -> 6993.350142 | AC72: =-N34*(1-AB69)/R2^2 -> -3280.821458 | AD72: =N35*AB69 -> 4840.736822
AA73: Mmax | AB73: =AB72+AC72+AD72 -> 8553.265506

Sheet Tens Force
A1: Concentrated Intermediate Load
A3: L | B3: 20 | I3: 1 | J3: 2 | K3: 3 | L3: 4
A4: a | B4: 8 | I4: cosh | J4: sinh | K4: cosh - 1 | L4: sinh - kx
A5: P | B5: 5000 | G5: k | H5: =SQRT(B5/(B7*B8)) -> 0.01177693743
A6: W | B6: 12000 | G6: kL | H6: =H5*B3 -> 0.2355387486 | I6: =COSH(H6) -> 1.027867733 | J6: =SINH(H6) -> 0.2377226874 | K6: =I6-1 -> 0.02786773278 | L6: =J6-H6 -> 0.002183938781 | M6: C
A7: E | B7: 10300000 | C7: psi | G7: k(L-a) | H7: =H5*(B3-B4) -> 0.1413232491 | I7: =COSH(H7) -> 1.010002762 | J7: =SINH(H7) -> 0.1417941433 | K7: =I7-1 -> 0.01000276191 | L7: =J7-H7 -> 0.0004708941254 | M7: Ca
A8: I | B8: 3.5 | C8: in4 | G8: ka | H8: =H5*B4 -> 0.09421549943 | I8: =COSH(H8) -> 1.004441564 | J8: =SINH(H8) -> 0.09435494623
A10: Point A at left end | H10: =B4 -> 8 | I10: =(E11+E12*B5)*J8/H5 -> 57345.74665 | J10: =IF(I10=I13,H10,0) -> 8
D11: RA | E11: =B6*(B3-B4)/B3 -> 7200
D12: qA | E12: =-B6/(B5*H5*B3)*(L6/J6*J7-L7) -> -0.008475110077
D13: Mmax | E13: =I13 -> 57345.74665 | F13: @ x = | G13: =J13 -> 8 | I13: =MAX(I10:I11) -> 57345.74665 | J13: =J10+J11 -> 8
D16: RA | E16: =B6*(J6*K7-I6*L7)/(J6*K6-I6*L6) -> 5188.684852
D17: qA | E17: =-B6/B5*(L6*K7-K6*L7)/(J6*K6-I6*L6) -> -0.004779552703
D18: MB | E18: =(E16+E17*B5)/H5*J6-B6/H5*J7 -> -40226.30296
D19: Ma | E19: =(E16+E17*B5)*J8/H5 -> 41379.45124
D21: RA | E21: =B6*(K6*K7-J6*L7)/(K6^2-J6*L6) -> 7775.616806 | J21: MA | K21: =-B6/H5*(L6*K7-K6*L7)/(K6^2-J6*L6) -> -34524.25611
D22: qA | E22: 0 | H22: =B4 -> 8 | I22: =K21*COSH(H5*H22)+E21*SINH(H$5*H22)/H$5 -> 27619.40513 | J22: MB | K22: =K21*I6+E21/H5*J6-B6/H5*J7 -> -23011.91999
D23: Mmax (-) | E23: =MIN(K21:K22) -> -34524.25611 | H23: =B3/2 -> 10 | I23: =K21*COSH(H5*H23)+E21*SINH(H5*H23)/H5-B6*SINH(H5*(H23-B4))/H5 -> 19169.86282
D24: Mmax (+) | E24: =MAX(I22:I24) -> 27619.40513 | H24: =B3-B4 -> 12 | I24: =K21*COSH(H5*H24)+E21*SINH(H5*H24)/H5-B6*SINH(H5*(H24-B4))/H5 -> 10730.95616
D27: RB | E27: =B6 -> 12000
D28: qA | E28: =B6/B5*K7/I6 -> 0.0233557566
D29: Mmax | E29: =E28*B5/H5*J6-B6/H5*J7 -> -142122.5818

Sheet Tens Moment
A1: Concentrated Intermediate Moment
A3: L | B3: 10 | I3: 1 | J3: 2 | K3: 3 | L3: 4
A4: a | B4: 3 | I4: cosh | J4: sinh | K4: cosh - 1 | L4: sinh - kx
A5: P | B5: 1500 | G5: k | H5: =SQRT(B5/(B7*B8)) -> 0.05396870722
A6: M0 | B6: 1000 | G6: kL | H6: =H5*B3 -> 0.5396870722 | I6: =COSH(H6) -> 1.1492003 | J6: =SINH(H6) -> 0.5662696605 | K6: =I6-1 -> 0.1492002995 | L6: =J6-H6 -> 0.02658258826 | M6: C
A7: E | B7: 10300000 | C7: psi | G7: k(L-a) | H7: =H5*(B3-B4) -> 0.3777809506 | I7: =COSH(H7) -> 1.072211961 | J7: =SINH(H7) -> 0.3868313444 | K7: =I7-1 -> 0.07221196085 | L7: =J7-H7 -> 0.009050393833 | M7: Ca
A8: I | B8: 0.05 | C8: in4 | G8: ka | H8: =H5*B4 -> 0.1619061217 | I8: =COSH(H8) -> 1.013135452 | J8: =SINH(H8) -> 0.1626144062
H10: =B4 -> 3 | I10: =(E11+E12*B5)*J8/H5 -> -307.9047378 | J10: =IF(I10=I13,H10,0) -> 0
D11: RA | E11: =-B6/B3 -> -100
D12: qA | E12: =B6*H5/B5*(1/H6-I7/J6) -> -0.001458583468
D13: Mmax (-) | E13: =(E11+E12*B5)/H5*J8 -> -307.9047378
D14: Mmax (+) | E14: =E13+B6 -> 692.0952622
D17: RA | E17: =-B6*H5*(J6*J7-I6*K7)/(J6*K6-I6*L6) -> -136.1400769
D18: qA | E18: =-B6*H5/B5*(K6*K7-L6*J7)/(J6*K6-I6*L6) -> -0.0003275595634
D19: Mmax (-) | E19: =(E17+E18*B5)/H5*J8 -> -411.6873975
D20: Mmax (+) | E20: =B6+E19 -> 588.3126025
D23: RA | E23: =-B6*H5*(K6*J7-J6*K7)/(K6^2-J6*L6) -> -125.9694543 | F23: MA | G23: =-B6*(K6*K7-L6*J7)/(K6^2-J6*L6) -> -68.1299058
D24: qA | E24: 0 | F24: MB | G24: =E23*B3+G23+B6 -> -327.8244492
D25: Mmax (-) | E25: =MIN(G25:G26) -> -448.5864073 | F25: =B4 -> 3 | G25: =G23*I8+E23/H5*J8 -> -448.5864073
D26: Mmax (+) | E26: =MAX(G25:G26) -> 551.4135927 | F26: =F25 -> 3 | G26: =G25+B6 -> 551.4135927
D29: RB | E29: 0
D30: qA | E30: =-B6*H5/B5*J7/I6 -> -0.01211090737
D31: Mmax | E31: =E30*B5/H5*J6+B6*I7 -> 881.6004076

Sheet Tens Distributed
A1: Distributed Load
O2: =(K14+K16*B8)/N5*T5-B6/N5^2*(COSH(N5*(B3-B4))-1)-N4/N5^3*(SINH(N5*(B3-B4))-N5*(B3-B4)) -> -29582.088 | AE2: x | AF2: kx | AG2: k*sinh | AH2: cosh | AI2: x-a | AJ2: k(x-a) | AK2: cosh | AL2: sinh | AM2: V | AN2: V'
A3: L | B3: 20 | AE3: =B4+B12/2 -> 7 | AF3: =N$5*AE3 -> 0.2181119335 | AG3: =N$5*SINH(AF3) -> 0.006850129889 | AH3: =COSH(AF3) -> 1.023880856 | AI3: =AE3-B$4 -> 4 | AJ3: =N$5*AI3 -> 0.1246353906 | AK3: =COSH(AJ3) -> 1.00777705 | AL3: =SINH(AJ3) -> 0.1249583219 | AM3: =AC$9*AH3-O$10*AL3-O$11*(AK3-1) -> 227.0426579 | AN3: =AC$9*AG3-(O$10*AK3+O$11*AL3)*N$5 -> -194.6702587
A4: a | B4: 3 | C4: Case 1 | J4: W | K4: =B12*(B6+B7)/2 -> 1600 | M4: Q | N4: =B13/B12 -> 0 | O4: (wb-wa)/(b - a) | AE4: =AE3-AM3/AN3 -> 8.166293503 | AF4: 0.2544522951 | AG4: 0.008014273451 | AH4: =COSH(AF4) -> 1.032548031 | AI4: 5.166293503 | AJ4: 0.1609757521 | AK4: =COSH(AJ4) -> 1.012984599 | AL4: =SINH(AJ4) -> 0.1616718861 | AM4: =AC$9*AH4-O$10*AL4-O$11*(AK4-1) -> 0.09995903345 | AN4: =AC$9*AG4-(O$10*AK4+O$11*AL4)*N$5 -> -194.5416733
A5: b | B5: 11 | J5: RA | K5: =K4*(B3-B14)/B3 -> 1040 | M5: k | N5: =SQRT(B8/(B9*B10)) -> 0.03115884764 | AE5: 8.166807321 | AF5: 0.254468305 | AG5: 0.008014788541 | AH5: 1.032552149 | AI5: 5.166807321 | AJ5: 0.1609917621 | AK5: 1.012987188 | AL5: 0.161688104 | AM5: 8.412825991e-12 | AN5: -194.5416733
A6: wa | B6: 200 | J6: RB | K6: =K4-K5 -> 560 | AE6: 8.166807321 | AF6: 0.254468305 | AG6: 0.008014788541 | AH6: 1.032552149 | AI6: 5.166807321 | AJ6: 0.1609917621 | AK6: 1.012987188 | AL6: 0.161688104 | AM6: 2.273736754e-13 | AN6: -194.5416733
A7: wb | B7: 200 | J7: qA | K7: =Calcs2!S39 -> -0.0009967852285 | AE7: 8.166807321 | AF7: 0.254468305 | AG7: 0.008014788541 | AH7: 1.032552149 | AI7: 5.166807321 | AJ7: 0.1609917621 | AK7: 1.012987188 | AL7: 0.161688104 | AM7: -4.547473509e-13 | AN7: -194.5416733
A8: P | B8: 35000 | J8: qB | K8: =Calcs2!S40 -> -0.0008320368646 | AE8: 8.166807321 | AF8: 0.254468305 | AG8: 0.008014788541 | AH8: 1.032552149 | AI8: 5.166807321 | AJ8: 0.1609917621 | AK8: 1.012987188 | AL8: 0.161688104 | AM8: 2.273736754e-13 | AN8: -194.5416733
A9: E | B9: 10300000 | C9: psi | J9: Mmax | K9: =AC11 -> 5622.076493 | L9: @ x = | M9: =AC12 -> 8.166807321 | AA9: (RA +qA*P) | AC9: =K5+K7*B8 -> 1005.112517 | AE9: 8.166807321 | AF9: 0.254468305 | AG9: 0.008014788541 | AH9: 1.032552149 | AI9: 5.166807321 | AJ9: 0.1609917621 | AK9: 1.012987188 | AL9: 0.161688104 | AM9: -4.547473509e-13 | AN9: -194.5416733
A10: I | B10: 3.5 | C10: in4 | N10: wa/k | O10: =B6/N5 -> 6418.722614 | AC10: =AC9*SINH(AF15)/N$5-B$6*(AK15-1)/N$5^2-N$4*(AL15-AJ15)/N$5^3 -> 5622.076493 | AE10: 8.166807321 | AF10: 0.254468305 | AG10: 0.008014788541 | AH10: 1.032552149 | AI10: 5.166807321 | AJ10: 0.1609917621 | AK10: 1.012987188 | AL10: 0.161688104 | AM10: 2.273736754e-13 | AN10: -194.5416733
N11: Q/k2 | O11: =N4/N5^2 -> 0 | AB11: Mmax | AC11: =IF(AC9<0,"NA",AC10) -> 5622.076493 | AE11: 8.166807321 | AF11: 0.254468305 | AG11: 0.008014788541 | AH11: 1.032552149 | AI11: 5.166807321 | AJ11: 0.1609917621 | AK11: 1.012987188 | AL11: 0.161688104 | AM11: -4.547473509e-13 | AN11: -194.5416733
A12: b - a | B12: =B5-B4 -> 8 | AB12: x | AC12: =IF(AC2<0,"NA",AE9) -> 8.166807321 | AE12: 8.166807321 | AF12: 0.254468305 | AG12: 0.008014788541 | AH12: 1.032552149 | AI12: 5.166807321 | AJ12: 0.1609917621 | AK12: 1.012987188 | AL12: 0.161688104 | AM12: 2.273736754e-13 | AN12: -194.5416733
A13: wb-wa | B13: =B7-B6 -> 0 | C13: Case 2 | AE13: 8.166807321 | AF13: 0.254468305 | AG13: 0.008014788541 | AH13: 1.032552149 | AI13: 5.166807321 | AJ13: 0.1609917621 | AK13: 1.012987188 | AL13: 0.161688104 | AM13: -4.547473509e-13 | AN13: -194.5416733
A14: Xcg | B14: =(B6*(B5+2*B4)+B7*(2*B5+B4))*B12/(6*K4) -> 7 | J14: RA | K14: =Calcs2!K53 -> 809.2773039 | AE14: 8.166807321 | AF14: 0.254468305 | AG14: 0.008014788541 | AH14: 1.032552149 | AI14: 5.166807321 | AJ14: 0.1609917621 | AK14: 1.012987188 | AL14: 0.161688104 | AM14: 2.273736754e-13 | AN14: -194.5416733
J15: RB | K15: =K4-K14 -> 790.7226961 | AE15: 8.166807321 | AF15: 0.254468305 | AG15: 0.008014788541 | AH15: 1.032552149 | AI15: 5.166807321 | AJ15: 0.1609917621 | AK15: 1.012987188 | AL15: 0.161688104 | AM15: -4.547473509e-13 | AN15: -194.5416733
J16: qA | K16: =Calcs2!N53 -> -0.0005886836773
J17: MB | K17: =Calcs2!N54 -> -4614.453922 | AE17: x | AF17: kx | AG17: k*sinh | AH17: cosh | AI17: x-a | AJ17: k(x-a) | AK17: cosh | AL17: sinh | AM17: V | AN17: V'
J18: Mmax (+) | K18: =AC28 -> 3962.593532 | L18: @ x = | M18: =AC29 -> 7.027706781 | AE18: =B4+B12/2 -> 7 | AF18: =N$5*AE18 -> 0.2181119335 | AG18: =N$5*SINH(AF18) -> 0.006850129889 | AH18: =COSH(AF18) -> 1.023880856 | AI18: =AE18-B$4 -> 4 | AJ18: =N$5*AI18 -> 0.1246353906 | AK18: =COSH(AJ18) -> 1.00777705 | AL18: =SINH(AJ18) -> 0.1249583219 | AM18: =AC$19*AH18-O$10*AL18-O$11*(AK18-1) -> 5.434764038 | AN18: =AC$19*AG18-(O$10*AK18+O$11*AL18)*N$5 -> -196.1528949
AA19: (RA + qA*P) | AC19: =K14+K16*B8 -> 788.6733752 | AE19: =AE18-AM18/AN18 -> 7.027706775 | AF19: 0.2189752447 | AG19: =N$5*SINH(AF19) -> 0.006877674617 | AH19: =COSH(AF19) -> 1.024071033 | AI19: 4.027706775 | AJ19: 0.1254987017 | AK19: =COSH(AJ19) -> 1.007885303 | AL19: =SINH(AJ19) -> 0.1258283938 | AM19: =AC$19*AH19-O$10*AL19-O$11*(AK19-1) -> 1.350187631e-06 | AN19: =AC$19*AG19-(O$10*AK19+O$11*AL19)*N$5 -> -196.1528218
C20: Case 3 | D20: Both ends fixed | J20: RA | K20: =Calcs2!R60 -> 1129.662704 | M20: MA | N20: =Calcs2!M62 -> -4299.075985 | AE20: 7.027706781 | AF20: 0.2189752449 | AG20: 0.006877674623 | AH20: 1.024071033 | AI20: 4.027706781 | AJ20: 0.125498702 | AK20: 1.007885303 | AL20: 0.125828394 | AM20: 0 | AN20: -196.1528218
J21: RB | K21: =K4-K20 -> 470.3372956 | M21: MB | N21: =Calcs2!P62 -> -2505.821897 | AE21: 7.027706781 | AF21: 0.2189752449 | AG21: 0.006877674623 | AH21: 1.024071033 | AI21: 4.027706781 | AJ21: 0.125498702 | AK21: 1.007885303 | AL21: 0.125828394 | AM21: 0 | AN21: -196.1528218
J22: Mmax (+) | K22: =AC48 -> 6692.998981 | L22: @ x = | M22: =AC49 -> 8.831376222 | AE22: 7.027706781 | AF22: 0.2189752449 | AG22: 0.006877674623 | AH22: 1.024071033 | AI22: 4.027706781 | AJ22: 0.125498702 | AK22: 1.007885303 | AL22: 0.125828394 | AM22: 0 | AN22: -196.1528218
AE23: 7.027706781 | AF23: 0.2189752449 | AG23: 0.006877674623 | AH23: 1.024071033 | AI23: 4.027706781 | AJ23: 0.125498702 | AK23: 1.007885303 | AL23: 0.125828394 | AM23: 0 | AN23: -196.1528218
AE24: 7.027706781 | AF24: 0.2189752449 | AG24: 0.006877674623 | AH24: 1.024071033 | AI24: 4.027706781 | AJ24: 0.125498702 | AK24: 1.007885303 | AL24: 0.125828394 | AM24: 0 | AN24: -196.1528218
AE25: 7.027706781 | AF25: 0.2189752449 | AG25: 0.006877674623 | AH25: 1.024071033 | AI25: 4.027706781 | AJ25: 0.125498702 | AK25: 1.007885303 | AL25: 0.125828394 | AM25: 0 | AN25: -196.1528218
AE26: 7.027706781 | AF26: 0.2189752449 | AG26: 0.006877674623 | AH26: 1.024071033 | AI26: 4.027706781 | AJ26: 0.125498702 | AK26: 1.007885303 | AL26: 0.125828394 | AM26: 0 | AN26: -196.1528218
AC27: =AC19*SINH(AF29)/N$5-B$6*(AK29-1)/N$5^2-N$4*(AL29-AJ29)/N$5^3 -> 3962.593532 | AE27: 7.027706781 | AF27: 0.2189752449 | AG27: 0.006877674623 | AH27: 1.024071033 | AI27: 4.027706781 | AJ27: 0.125498702 | AK27: 1.007885303 | AL27: 0.125828394 | AM27: 0 | AN27: -196.1528218
AB28: Mmax | AC28: =IF(AC19<0,"NA",AC27) -> 3962.593532 | AE28: 7.027706781 | AF28: 0.2189752449 | AG28: 0.006877674623 | AH28: 1.024071033 | AI28: 4.027706781 | AJ28: 0.125498702 | AK28: 1.007885303 | AL28: 0.125828394 | AM28: 0 | AN28: -196.1528218
C29: Case 4 | D29: Cantilever (right end fixed) | J29: RB | K29: =K4 -> 1600 | AB29: x | AC29: =IF(AC19<0,"NA",AE27) -> 7.027706781 | AE29: 7.027706781 | AF29: 0.2189752449 | AG29: 0.006877674623 | AH29: 1.024071033 | AI29: 4.027706781 | AJ29: 0.125498702 | AK29: 1.007885303 | AL29: 0.125828394 | AM29: 0 | AN29: -196.1528218
J30: qA | K30: =Calcs2!P82 -> 0.00370682147
J31: yA | K31: =Calcs2!P83 -> -0.05873661863
J32: MB | K32: =Calcs2!L66 -> -20800
AE33: x | AF33: kx | AG33: k*sinh | AH33: cosh | AI33: x-a | AJ33: k(x-a) | AK33: cosh | AL33: sinh | AM33: V | AN33: V'
AE34: =B4+B12/2 -> 7 | AF34: =N$5*AE34 -> 0.2181119335 | AG34: =N$5*SINH(AF34) -> 0.006850129889 | AH34: =COSH(AF34) -> 1.023880856 | AI34: =AE34-B$4 -> 4 | AJ34: =N$5*AI34 -> 0.1246353906 | AK34: =COSH(AJ34) -> 1.00777705 | AL34: =SINH(AJ34) -> 0.1249583219 | AM34: =AC$35*AH34-O$10*AL34-O$11*(AK34-1) -> 354.5672104 | AN34: =AC$35*AG34-(O$10*AK34+O$11*AL34)*N$5 -> -193.8170737
AA35: (RA + qA*P) | AC35: =K20 -> 1129.662704 | AE35: =AE34-AM34/AN34 -> 8.829391001 | AF35: 0.275113649 | AG35: =N$5*SINH(AF35) -> 0.0086807693 | AH35: =COSH(AF35) -> 1.038083055 | AI35: 5.829391001 | AJ35: 0.181637106 | AK35: =COSH(AJ35) -> 1.016541422 | AL35: =SINH(AJ35) -> 0.182637518 | AM35: =AC$35*AH35-O$10*AL35-O$11*(AK35-1) -> 0.3841441926 | AN35: =AC$35*AG35-(O$10*AK35+O$11*AL35)*N$5 -> -193.5019431
AE36: =AE35-AM35/AN35 -> 8.831376222 | AF36: 0.2751755062 | AG36: 0.008682770118 | AH36: 1.03810029 | AI36: 5.831376222 | AJ36: 0.1816989632 | AK36: 1.016552722 | AL36: 0.1827003987 | AM36: 4.897628969e-10 | AN36: -193.5019427
AE37: 8.831376222 | AF37: 0.2751755062 | AG37: 0.008682770118 | AH37: 1.03810029 | AI37: 5.831376222 | AJ37: 0.1816989632 | AK37: 1.016552722 | AL37: 0.1827003987 | AM37: 2.273736754e-13 | AN37: -193.5019427
AE38: 8.831376222 | AF38: 0.2751755062 | AG38: 0.008682770118 | AH38: 1.03810029 | AI38: 5.831376222 | AJ38: 0.1816989632 | AK38: 1.016552722 | AL38: 0.1827003987 | AM38: 0 | AN38: -193.5019427
AE39: 8.831376222 | AF39: 0.2751755062 | AG39: 0.008682770118 | AH39: 1.03810029 | AI39: 5.831376222 | AJ39: 0.1816989632 | AK39: 1.016552722 | AL39: 0.1827003987 | AM39: 0 | AN39: -193.5019427
AE40: 8.831376222 | AF40: 0.2751755062 | AG40: 0.008682770118 | AH40: 1.03810029 | AI40: 5.831376222 | AJ40: 0.1816989632 | AK40: 1.016552722 | AL40: 0.1827003987 | AM40: 0 | AN40: -193.5019427
AE41: 8.831376222 | AF41: 0.2751755062 | AG41: 0.008682770118 | AH41: 1.03810029 | AI41: 5.831376222 | AJ41: 0.1816989632 | AK41: 1.016552722 | AL41: 0.1827003987 | AM41: 0 | AN41: -193.5019427
AE42: 8.831376222 | AF42: 0.2751755062 | AG42: 0.008682770118 | AH42: 1.03810029 | AI42: 5.831376222 | AJ42: 0.1816989632 | AK42: 1.016552722 | AL42: 0.1827003987 | AM42: 0 | AN42: -193.5019427
AE43: 8.831376222 | AF43: 0.2751755062 | AG43: 0.008682770118 | AH43: 1.03810029 | AI43: 5.831376222 | AJ43: 0.1816989632 | AK43: 1.016552722 | AL43: 0.1827003987 | AM43: 0 | AN43: -193.5019427
AE44: 8.831376222 | AF44: 0.2751755062 | AG44: 0.008682770118 | AH44: 1.03810029 | AI44: 5.831376222 | AJ44: 0.1816989632 | AK44: 1.016552722 | AL44: 0.1827003987 | AM44: 0 | AN44: -193.5019427
AE45: 8.831376222 | AF45: 0.2751755062 | AG45: 0.008682770118 | AH45: 1.03810029 | AI45: 5.831376222 | AJ45: 0.1816989632 | AK45: 1.016552722 | AL45: 0.1827003987 | AM45: 0 | AN45: -193.5019427
AE46: 8.831376222 | AF46: =N$5*AE46 -> 0.2751755062 | AG46: 0.008682770118 | AH46: 1.03810029 | AI46: =AE46-B$4 -> 5.831376222 | AJ46: =N$5*AI46 -> 0.1816989632 | AK46: 1.016552722 | AL46: 0.1827003987 | AM46: 0 | AN46: -193.5019427
AE47: 8.831376222 | AF47: =N$5*AE47 -> 0.2751755062 | AG47: 0.008682770118 | AH47: 1.03810029 | AI47: =AE47-B$4 -> 5.831376222 | AJ47: =N$5*AI47 -> 0.1816989632 | AK47: 1.016552722 | AL47: 0.1827003987 | AM47: 0 | AN47: -193.5019427
AB48: Mmax | AC48: =AC35*SINH(AF49)/N$5-B$6*(AK49-1)/N$5^2-N$4*(AL49-AJ49)/N$5^3 -> 6692.998981 | AE48: 8.831376222 | AF48: =N$5*AE48 -> 0.2751755062 | AG48: 0.008682770118 | AH48: 1.03810029 | AI48: =AE48-B$4 -> 5.831376222 | AJ48: =N$5*AI48 -> 0.1816989632 | AK48: 1.016552722 | AL48: 0.1827003987 | AM48: 0 | AN48: -193.5019427
AB49: x | AC49: =AE49 -> 8.831376222 | AE49: 8.831376222 | AF49: =N$5*AE49 -> 0.2751755062 | AG49: 0.008682770118 | AH49: 1.03810029 | AI49: =AE49-B$4 -> 5.831376222 | AJ49: =N$5*AI49 -> 0.1816989632 | AK49: 1.016552722 | AL49: 0.1827003987 | AM49: 0 | AN49: -193.5019427

Sheet Calcs1
A1: Distributed Load
A3: L | B3: ='Comp Distributed'!B3 -> 10 | I3: wa | J3: =B6 -> 200
A4: a | B4: ='Comp Distributed'!B4 -> 0 | I4: Q | J4: =(B7-B6)/(B5-B4) -> 0 | K4: (wb-wa)/(b - a)
A5: b | B5: ='Comp Distributed'!B5 -> 10 | I5: k | J5: =SQRT(B8/(B9*B10)) -> 0.05396870722
A6: wa | B6: ='Comp Distributed'!B6 -> 200 | L6: wa/k | M6: =J3/J5 -> 3705.851229 | N6: Z1
A7: wb | B7: ='Comp Distributed'!B7 -> 200 | L7: Q/k2 | M7: =J4/J5^2 -> 0 | N7: Z2
A8: P | B8: ='Comp Distributed'!B8 -> 1500
A9: E | B9: ='Comp Distributed'!B9 -> 10300000 | C9: psi
A10: I | B10: ='Comp Distributed'!B10 -> 0.05 | C10: in4
A12: b - a | B12: =B5-B4 -> 10
A13: wb-wa | B13: =B7-B6 -> 0
A14: W | B14: =(B6+B7)*(B5-B4)/2 -> 2000
A15: Xcg | B15: =(B6*(B5+2*B4)+B7*(2*B5+B4))*B12/(6*B14) -> 5 | E15: CASE 1 ss/ss | AN15: qA*P*F1
E16: yA = yL = 0 | I16: RA | J16: =B14*(1-B15/B3) -> 1000 | AN16: =AI$5*Z16 -> 0
E17: MA = ML = 0 | I17: RB | J17: =B14-J16 -> 1000 | AN17: =AI$5*Z17 -> 0
B18: 20 | AN18: 0
B19: 3 | E19: Values at b for span 0 to b | AN19: 0
B20: 11 | E20: qb*P = qA*P*F1 + RA*F3 - Z1*Fa4 - Z2*Fa5 | AN20: 0
B21: 200 | E21: yb*k*P = qA*P*F2 + RA*F4 - Z1*Fa5 - Z2*Fa6 | AN21: 0
B22: 200 | L22: Going from B toward A to b | AN22: 0
E23: Values at b for span L to b | AN23: 0
E24: qb*P = qB*P*F1 + RB*F3 | L24: qb*P = qB*P*F1 + MB*k*F2 + RB*F3 | AN24: 0
E25: yb*k*P = qB*P*F2 + RB*F4 | L25: yb*k*P = yB*k*P + qB*P*R2 + MB*k*F3 + RB*F4 | AN25: 0 | AO25: qB*P*F1
AO26: =Q$40*Z26 -> 0
L27: see below | AO27: =Q$40*Z27 -> 0
L28: T1 | M28: T2 | T28: C1 = RA*F3b - (Z1*Fa4 + Z2*Fa5) | AO28: 0
L29: F1b | M29: F1d | N29: = | O29: -(C1 + RB*F3d) | Q29: =-(U30+J17*O36) -> -46.44722289 | T29: C2 = RA*F4b - (Z1*Fa5 + Z2*Fa6) | AO29: 0
L30: F2b | M30: -F2d | N30: = | O30: -C2 + RB*F4d | Q30: =-U31+J17*P36 -> -12.84682321 | T30: C1 | U30: =J16*O35 -(M6*P37+M7*Q37) -> 46.44722289 | AO30: 0
T31: C2 | U31: =J16*P35 -(M6*Q37+M7*R37) -> 12.84682321 | AO31: 0
AO32: 0
M33: F1 | N33: F2 | O33: F3 | P33: F4 | AO33: 0
K34: x | L34: kx | M34: cos | N34: sin | O34: 1 - cos | P34: kx - sin | Q34: Fa5 | R34: Fa6 | AO34: 0
J35: b | K35: =B5 -> 10 | L35: =J$5*K35 -> 0.5396870722 | M35: =COS(L35) -> 0.8578695268 | N35: =SIN(L35) -> 0.5138675656 | O35: =1-M35 -> 0.1421304732 | P35: =L35-N35 -> 0.02581950661 | AO35: 0
J36: d = L-b | K36: =B3-B5 -> 0 | L36: =J$5*K36 -> 0 | M36: 1 | N36: 0 | O36: 0 | P36: 0 | AO36: 0
J37: c = b-a | K37: =B12 -> 10 | L37: =J$5*K37 -> 0.5396870722 | M37: 0.8578695268 | N37: 0.5138675656 | O37: 0.1421304732 | P37: 0.02581950661 | Q37: =L37^2/2-O37 -> 0.003500594761 | R37: =L37^3/6-P37 -> 0.0003788949549
J39: Matrix | K39: =M35 -> 0.8578695268 | L39: =M36 -> 1 | M39: Inverse | N39: =MINVERSE(K39:L40) -> 0 | O39: 1.946026694 | Q39: =MMULT(N39:O40,Q29:Q30) -> -25.0002609 | R39: qA*P | S39: =Q39/B8 -> -0.0166668406 | T39: qA | U39: =Q39+H28 -> -25.0002609 | V39: qb
K40: =N35 -> 0.5138675656 | L40: =-N36 -> 0 | N40: 1 | O40: -1.669436999 | Q40: -25.0002609 | R40: qB*P | S40: =Q40/B8 -> -0.0166668406 | T40: qB
E42: CASE 2 ss/fixed
E43: yA = yL = 0
E44: MA = qL = 0 | T44: T1 | U44: T2
E45: RB = W-RA | T45: F1b | U45: (F3b + C5) | V45: = | W45: C1 + C3
T46: F2b | U46: (F4b - C6) | V46: = | W46: C2 - C4
E47: Values at b for span 0 to b | K47: see below
E48: qb*P = qA*P*F1 + RA*F3 - Z1*Fa4 - Z2*Fa5 | J48: Matrix | K48: =M35 -> 0.8578695268 | L48: =O35+W52 -> 0.1421304732 | M48: Inverse | N48: =MINVERSE(K48:L49) -> -0.5073943117 | O48: 2.793089531 | Q48: =W48+W50 -> 95.68325031 | R48: =MMULT(N48:O49,Q48:Q49) -> -12.31527073 | S48: qA*P | T48: C1 = Z1*Fa4 + Z2*Fa5 | W48: =M6*P37+M7*Q37 -> 95.68325031
E49: yb*k*P = qA*P*F2 + RA*F4 - Z1*Fa5 - Z2*Fa6 | K49: =N35 -> 0.5138675656 | L49: =P35-W53 -> 0.02581950661 | N49: 10.09831379 | O49: -16.85849868 | Q49: =W49-W51 -> 12.9726834 | R49: 747.5395205 | S49: RA | T49: C2 = Z1*Fa5 + Z2*Fa6 | W49: =M6*Q37+M7*R37 -> 12.9726834
T50: C3 = W*((L-Xcg)*k*F2d - F3d) | W50: =B14*((B3-B15)*J5*N36-O36) -> 0
T51: C4 = W*((L-Xcg)*k*F3d - F4d) | W51: =B14*((B3-B15)*J5*O36-P36) -> 0
E52: Values at b for span L to b | T52: C5 = L*k*F2d - F3d | W52: =B3*J5*N36-O36 -> 0
E53: qb*P = MB*k*F2 + RB*F3 | J53: RA | K53: =R49 -> 747.5395205 | M53: qA | N53: =R48/B8 -> -0.008210180487 | T53: C6 = L*k*F3d - F4d | W53: =B3*J5*O36-P36 -> 0
E54: yb*k*P = MB*k*F3 + RB*F4 | J54: RB | K54: =B14-K53 -> 1252.46048 | M54: MB | N54: =K53*B3-B14*(B3-B15) -> -2524.604795 | P54: MB = RA*L - W*(L - Xcg)
T57: T1 | U57: T2
E58: CASE 3 fixed/fixed | K58: see below | T58: (F2b + F2d) | U58: (F3b + C5) | V58: = | W58: C1 + C3
E59: yA = yB = 0 | K59: =N35+N36 -> 0.5138675656 | L59: =O35+(B3*J5*N36-O36) -> 0.1421304732 | N59: =MINVERSE(K59:L60) -> -3.724004322 | O59: 20.49979128 | Q59: =W61+W63 -> 95.68325031 | R59: =MMULT(N59:O60,Q59:Q60) -> -90.38753563 | S59: MA*k | T59: (F3b - F3d) | U59: (F4b - C6) | V59: = | W59: C2 - C4
E60: qA = qB = 0 | K60: =O35-O36 -> 0.1421304732 | L60: =P35-(B3*J5*O36-P36) -> 0.02581950661 | N60: 20.49979128 | O60: -74.1162511 | Q60: =W62-W64 -> 12.9726834 | R60: 1000 | S60: RA
T61: C1 = Z1*Fa4 + Z2*Fa5 | W61: =M6*P37+M7*Q37 -> 95.68325031
L62: MA | M62: =R59/J5 -> -1674.8138 | O62: MB | P62: =(R59+R60*J5*B3-B14*J5*(B3-B15))/J5 -> -1674.8138 | T62: C2 = Z1*Fa5 + Z2*Fa6 | W62: =M6*Q37+M7*R37 -> 12.9726834
O63: RB | P63: =B14-R60 -> 1000 | T63: C3 = W*((L-Xcg)*k*F2d - F3d) | W63: =B14*((B3-B15)*J5*N36-O36) -> 0
T64: C4 = W*((L-Xcg)*k*F3d - F4d) | W64: =B14*((B3-B15)*J5*O36-P36) -> 0
E65: CASE4 free/fixed (cantilever)
E66: yB = qB = 0 | J66: MB = W*(L - Xcg) | L66: =-B14*(B3-B15) -> -10000 | N66: RB = W | O66: =B14 -> 2000 | Q66: MB*k | R66: =L66*J5 -> -539.6870722
E67: RA = MA = 0
J68: yb*k*P = yA*k*P + qA*P*F2 - Z1*Fa5 - Z2*Fa6
J69: qb*P = qA*P*F1 - Z1*Fa4 - Z2*Fa5
O71: at b
J72: yb*k*P = RB*F4d + Mb*k*F3d | O72: F4d | P72: =P36 -> 0 | Q72: RB | R72: =O66 -> 2000 | S72: =P72*R72 -> 0
O73: F3d | P73: =O36 -> 0 | Q73: MB*k | R73: =R66 -> -539.6870722 | S73: =P73*R73 -> 0
J74: qb*P = MB*k*F2d + RB*F3d | R74: C1 = | S74: =S72+S73 -> 0
J76: - Z1*FA5 - Z2*FA6 | L76: S1 | M76: =-M6*Q37-M7*R37 -> -12.9726834 | O76: F2d | P76: =N36 -> 0 | Q76: MB*k | R76: =R73 -> -539.6870722 | S76: =P76*R76 -> 0
J77: - Z1*FA4 - Z2*FA5 | L77: S2 | M77: =-M6*P37-M7*Q37 -> -95.68325031 | O77: F3d | P77: =P73 -> 0 | Q77: RB | R77: =R72 -> 2000 | S77: 0
R78: C2 = | S78: =S76+S77 -> 0
J79: Let T1 = yA*k*P | M79: T1 + T2*F2b + S1 = C1
J80: T2 = qA*P | M80: T2*F1b + S2 = C2
J82: T2 = (C2 - S2)/F1b | L82: =(-S78-M77)/M35 -> 111.5359006 | M82: qA*P | O82: qA | P82: =L82/B8 -> 0.0743572671
J83: T1 = C1 - T2*F2b - S1 | L83: =S74-L82*N35-M76 -> -44.34199834 | M83: yA*k*P | O83: yA | P83: =L83/(J5*B8) -> -0.5477494969
J89: Case 1
J90: qb*P = qA*P*F1b + RA*F3b - Z1*Fa4 - Z2*Fa5
J91: yb*k*P = qA*P*F2b + RA*F4b - Z1*Fa5 - Z2*Fa6
J93: qb*P = qB*P*F1d + RB*F3d | O93: RB = W - RA
J94: yb*k*P = qB*P*F2d + RB*F4d | O94: RA and RB are known
O95: qA and qB are unknown
I96: Let | J96: C1 = RA*F3b - (Z1*Fa4 + Z2*Fa5) | N96: T1 = qA*P
J97: C2 = RA*F4b - (Z1*Fa5 + Z2*Fa6) | N97: T2 = qB*P
J99: T1*F1b + C1 = -(T2*F1d + RB*F3d) | N99: T1*F1b + T2*F1d = -(C1 + RB*F3d)
J100: T1*F2b + C2 = T2*F2d + RB*F4d | N100: T1*F2b - T2*F2d = -C2 + RB*F4d
N101: T1 | O101: T2
N102: F1b | O102: F1d | P102: = | Q102: -(C1 + RB*F3d)
N103: F2b | O103: -F2d | P103: = | Q103: -C2 + RB*F4d
J108: Case 2
J109: qb*P = qA*P*F1b + RA*F3b - Z1*Fa4 - Z2*Fa5
J110: yb*k*P = qA*P*F2 + RA*F4 - Z1*Fa5 - Z2*Fa6
J112: qb*P = MB*k*F2 + RB*F3 | O112: MB = RA*L - W*(L - Xcg)
J113: yb*k*P = MB*k*F3 + RB*F4 | O113: RB = W - RA
J115: qb*P = [RA*L - W*(L - Xcg)]*k*F2d + [W - RA]*F3d | P115: RA*(L*k*F2d - F3d) - W*[(L-Xcg)*k*F2d - F3d)
J116: yb*k*P = [RA*L - W*(L - Xcg)]*k*F3d + [W - RA]*F4d | P116: RA*(L*k*F3d - F4d) - W*((L-Xcg)*k*F3d - F4d)
I118: Let | J118: C1 = Z1*Fa4 + Z2*Fa5 | M118: T1 = qA*P | O118: qb*P = T1*F1b + T2*F3b - C1 | S118: qb*P[L] = -qb*P[R]
J119: C2 = Z1*Fa5 + Z2*Fa6 | M119: T2 = RA | O119: yb*k*P = T1*F2b + T2*F4b - C2 | S119: yb*k*P[L] = yb*k*P[R]
J121: C3 = W*((L-Xcg)*k*F2d - F3d) | O121: qb*P = T2*C5 - C3
J122: C4 = W*((L-Xcg)*k*F3d - F4d) | O122: yb*k*P = T2*C6 - C4
J124: C5 = L*k*F2d - F3d | O124: T1*F1b + T2*F3b - C1 = -(T2*C5 - C3)
J125: C6 = L*k*F3d - F4d | O125: T1*F2b + T2*F4b - C2 = T2*C6 - C4
O126: T1 | P126: T2
O127: F1b | P127: (F3b + C5) | Q127: = | R127: C1 + C3
O128: F2b | P128: (F4b - C6) | Q128: = | R128: C2 - C4
J131: Case 3
J132: qb*P = MA*k*F2b + RA*F3b - Z1*Fa4 - Z2*Fa5
J133: yb*k*P = MA*k*F3b + RA*F4b - Z1*Fa5 - Z2*Fa6
J135: qb*P = MB*k*F2d + RB*F3d | O135: MB = MA + RA*L - W*(L - Xcg)
J136: yb*k*P = MB*k*F3d + RB*F4d | O136: RB = W - RA
J138: qb*P = [MA + RA*L - W*(L - Xcg)]*k*F2d + [W - RA]*F3d | P138: MA*k*F2d + RA*(L*k*F2d - F3d) - W*[(L-Xcg)*k*F2d - F3d)
J139: yb*k*P = [MA + RA*L - W*(L - Xcg)]*k*F3d + [W - RA]*F4d | P139: MA*k*F3d + RA*(L*k*F3d - F4d) - W*((L-Xcg)*k*F3d - F4d)
I142: Let | J142: C1 = Z1*Fa4 + Z2*Fa5 | M142: T1 = MA*k | O142: qb*P = T1*F2b + T2*F3b - C1 | S142: qb*P[L] = -qb*P[R] | V142: T1*F2b + T2*F3b - C1 = -(T1*F2d + T2*C5 - C3)
J143: C2 = Z1*Fa5 + Z2*Fa6 | M143: T2 = RA | O143: yb*k*P = T1*F3b + T2*F4b - C2 | S143: yb*k*P[L] = yb*k*P[R]
J145: C3 = W*((L-Xcg)*k*F2d - F3d) | O145: qb*P = T1*F2d + T2*C5 - C3
J146: C4 = W*((L-Xcg)*k*F3d - F4d) | O146: yb*k*P = T1*F3d + T2*C6 - C4
J148: C5 = L*k*F2d - F3d | O148: T1*(F2b + F2d) + T2*(F3b + C5) = C1 + C3
J149: C6 = L*k*F3d - F4d | O149: T1*(F3b - F3d) + T2*(F4b - C6) = C2 - C4
O150: T1 | P150: T2
O151: (F2b + F2d) | P151: (F3b + C5) | Q151: = | R151: C1 + C3
O152: (F3b - F3d) | P152: (F4b - C6) | Q152: = | R152: C2 - C4

Sheet Calcs2
A1: Distributed Load
A3: L | B3: ='Tens Distributed'!B3 -> 20 | I3: wa | J3: =B6 -> 200
A4: a | B4: ='Tens Distributed'!B4 -> 3 | I4: Q | J4: =(B7-B6)/(B5-B4) -> 0 | K4: (wb-wa)/(b - a) | X4: x | Y4: kx | Z4: F1 | AA4: F2 | AB4: F3 | AI4: =J16 -> 1040
A5: b | B5: ='Tens Distributed'!B5 -> 11 | I5: k | J5: =SQRT(B8/(B9*B10)) -> 0.03115884764 | X5: 0 | Y5: =X5*J$5 -> 0 | Z5: =COS(Y5) -> 1 | AA5: =SIN(Y5) -> 0 | AB5: =1-Z5 -> 0 | AD5: k(x-a) | AI5: =Q39 -> -34.887483
A6: wa | B6: ='Tens Distributed'!B6 -> 200 | L6: wa/k | M6: =J3/J5 -> 6418.722614 | N6: Z1 | X6: =X5+B$4/10 -> 0.3 | Y6: =X6*J$5 -> 0.009347654293 | Z6: =COS(Y6) -> 0.999956311 | AA6: =SIN(Y6) -> 0.009347518162 | AB6: =1-Z6 -> 4.368900226e-05 | AI6: =AI$5*Z6+AI$4*AB6 -> -34.84052224
A7: wb | B7: ='Tens Distributed'!B7 -> 200 | L7: Q/k2 | M7: =J4/J5^2 -> 0 | N7: Z2 | X7: =X6+B$4/10 -> 0.6 | Y7: 0.01869530859 | Z7: 0.9998252478 | AA7: 0.01869421956 | AB7: 0.0001747521916 | AI7: =AI$5*Z7+AI$4*AB7 -> -34.69964406
A8: P | B8: ='Tens Distributed'!B8 -> 35000 | X8: 0.9 | Y8: 0.02804296288 | Z8: 0.9996068219 | AA8: 0.02803928749 | AB8: 0.000393178116 | AI8: -34.46486076
A9: E | B9: ='Tens Distributed'!B9 -> 10300000 | C9: psi | X9: 1.2 | Y9: 0.03739061717 | Z9: 0.9993010523 | AA9: 0.0373819054 | AB9: 0.0006989476897 | AI9: -34.13619288
A10: I | B10: ='Tens Distributed'!B10 -> 3.5 | C10: in4 | X10: 1.5 | Y10: 0.04673827146 | Z10: 0.9989079658 | AA10: 0.04672125696 | AB10: 0.001092034195 | AI10: -33.71366911
X11: 1.8 | Y11: 0.05608592576 | Z11: 0.9984275967 | AA11: 0.05605652611 | AB11: 0.001572403286 | AI11: -33.19732639
A12: b - a | B12: =B5-B4 -> 8 | X12: 2.1 | Y12: 0.06543358005 | Z12: 0.997859987 | AA12: 0.06538689715 | AB12: 0.002140012987 | AI12: -32.58720983
A13: wb-wa | B13: =B7-B6 -> 0 | X13: 2.4 | Y13: 0.07478123434 | Z13: 0.9972051863 | AA13: 0.07471155481 | AB13: 0.002794813703 | AG13: =M$6 -> 6418.722614 | AI13: -31.88337273
A14: W | B14: =(B6+B7)*(B5-B4)/2 -> 1600 | X14: 2.7 | Y14: 0.08412888863 | Z14: 0.9964632518 | AA14: 0.08402968433 | AB14: 0.003536748218 | AE14: Fa4 | AF14: Fa5 | AG14: =M$7 -> 0 | AI14: -31.08587661
A15: Xcg | B15: =(B6*(B5+2*B4)+B7*(2*B5+B4))*B12/(6*B14) -> 7 | E15: CASE 1 ss/ss | X15: 3 | Y15: 0.09347654293 | Z15: 0.9956342483 | AA15: 0.0933404715 | AB15: 0.004365751704 | AD15: 0 | AE15: =AD15-SIN(AD15) -> 0 | AF15: =AD15^2/2-(1-COS(AD15)) -> 0 | AI15: -30.19479114 | AK15: RA*F3-Z1*Fa4-Z2*Fa5 | AN15: qA*P*F1
E16: yA = yL = 0 | I16: RA | J16: =B14*(1-B15/B3) -> 1040 | X16: =X15+B$12/10 -> 3.8 | Y16: 0.118403621 | Z16: 0.9929984768 | AA16: 0.1181271566 | AB16: 0.007001523228 | AD16: =J$5*(X16-B$4) -> 0.02492707811 | AE16: =AD16-SIN(AD16) -> 2.581364784e-06 | AF16: =AD16^2/2-(1-COS(AD16)) -> 1.608663696e-08 | AI16: =AI$5*Z16+AI$4*AB16-AG$13*AE16-AG$14*AF16 -> -27.37820238 | AK16: =AI$4*AB16-AG$13*AE16-AG$14*AF16 -> 7.265015092 | AN16: =AI$5*Z16 -> -34.64321748
E17: MA = ML = 0 | I17: RB | J17: =B14-J16 -> 560 | X17: =X16+B$12/10 -> 4.6 | Y17: 0.1433306992 | Z17: 0.9897457284 | AA17: 0.1428404461 | AB17: 0.01025427157 | AD17: 0.04985415623 | AE17: 2.064899361e-05 | AF17: 2.573701995e-07 | AI17: =AI$5*Z17+AI$4*AB17-AG$13*AE17-AG$14*AF17 -> -23.99783501 | AK17: =AI$4*AB17-AG$13*AE17-AG$14*AF17 -> 10.53190227 | AN17: =AI$5*Z17 -> -34.52973727
B18: 20 | X18: 5.4 | Y18: 0.1682577773 | Z18: 0.9858780243 | AA18: 0.167464985 | AB18: 0.0141219757 | AD18: 0.07478123434 | AE18: 6.967952847e-05 | AF18: 1.302801711e-06 | AI18: -20.15520165 | AK18: 14.23960116 | AN18: -34.39480281
B19: 3 | E19: Values at b for span 0 to b | X19: 6.2 | Y19: 0.1931848554 | Z19: 0.9813977675 | AA19: 0.1919854733 | AB19: 0.01860223251 | AD19: 0.09970831246 | AE19: 0.0001651303733 | AF19: 4.116899851e-06 | AI19: -15.95210218 | AK19: 18.28639575 | AN19: -34.23849793
B20: 11 | E20: qb*P = qA*P*F1 + RA*F3 - Z1*Fa4 - Z2*Fa5 | X20: 7 | Y20: 0.2181119335 | Z20: 0.9763077417 | AA20: 0.2163866759 | AB20: 0.02369225831 | AD20: 0.1246353906 | AE20: 0.0003224300898 | AF20: 1.004915167e-05 | AI20: -11.49056041 | AK20: 22.57035933 | AN20: -34.06091974
B21: 200 | E21: yb*k*P = qA*P*F2 + RA*F4 - Z1*Fa5 - Z2*Fa6 | X21: 7.8 | Y21: 0.2430390116 | Z21: 0.9706111095 | AA21: 0.2406534316 | AB21: 0.02938889051 | AD21: 0.1495624687 | AE21: 0.0005569688113 | AF21: 2.083317412e-05 | AI21: -6.87276075 | AK21: 26.98941783 | AN21: -33.86217858
B22: 200 | L22: Going from B toward A to b | X22: 8.6 | Y22: 0.2679660897 | Z22: 0.9643114103 | AA22: 0.2647706628 | AB22: 0.03568858966 | AD22: 0.1744895468 | AE22: 0.0008840886805 | AF22: 3.85856369e-05 | AI22: -2.200984697 | AK22: 31.44141324 | AN22: -33.64239793
E23: Values at b for span L to b | X23: 9.4 | Y23: 0.2928931678 | Z23: 0.9574125584 | AA23: 0.2887233848 | AB23: 0.04258744156 | AD23: 0.1994166249 | AE23: 0.001319074317 | AF23: 6.580494734e-05 | AI23: 2.422452724 | AK23: 35.82416708 | AN23: -33.40171436
E24: qb*P = qB*P*F1 + RB*F3 | L24: q*P = qB*P*F1 + MB*k*F2 + RB*F3 | X24: 10.2 | Y24: 0.317820246 | Z24: 0.9499188402 | AA24: 0.3124967152 | AB24: 0.05008115979 | AD24: 0.224343703 | AE24: 0.00187714332 | AF24: 0.000105369698 | AI24: 6.895266516 | AK24: 40.0355439 | AN24: -33.14027739
E25: yb*k*P = qB*P*F2 + RB*F4 | L25: y*k*P = yB*k*P + qB*P*R2 + MB*k*F3 + RB*F4 | X25: 11 | Y25: 0.3427473241 | Z25: 0.9418349117 | AA25: 0.3360758829 | AB25: 0.05816508829 | AD25: 0.2492707811 | AE25: 0.002573436814 | AF25: 0.0001605368784 | AI25: 11.11526527 | AK25: 43.97351474 | AL25: RB*F3 | AN25: -32.85824947 | AO25: qB*P*F1
X26: =K36 -> 9 | Y26: 0.2804296288 | Z26: 0.9609366193 | AA26: 0.2767685201 | AB26: 0.03906338072 | AI26: =AO26-AL26 -> -49.85920742 | AL26: =J$17*AB26 -> 21.8754932 | AO26: =Q$40*Z26 -> -27.98371421
L27: see bottom of Calcs1 worksheet | X27: =B$3-(X25+K$36/10) -> 8.1 | Y27: 0.2523866659 | Z27: 0.9683191921 | AA27: 0.2497157227 | AB27: 0.03168080787 | AI27: =AO27-AL27 -> -45.93995667 | AL27: =J$17*AB27 -> 17.74125241 | AO27: =Q$40*Z27 -> -28.19870426
L28: T1 | M28: T2 | T28: C1 = RA*F3b - (Z1*Fa4 + Z2*Fa5) | X28: =X27-K$36/10 -> 7.2 | Y28: 0.224343703 | Z28: 0.9749403212 | AA28: 0.2224665597 | AB28: 0.02505967885 | AI28: -42.42494023 | AL28: 14.03342015 | AO28: -28.39152008
L29: F1b | M29: F1d | N29: = | O29: -(C1 + RB*F3d) | Q29: =-(U30+J17*O36) -> -67.23071349 | T29: C2 = RA*F4b - (Z1*Fa5 + Z2*Fa6) | X29: 6.3 | Y29: 0.1963007401 | Z29: 0.9807947998 | AA29: 0.1950424588 | AB29: 0.01920520022 | AI29: -39.31692218 | AL29: 10.75491212 | AO29: -28.56201005
L30: F2b | M30: -F2d | N30: = | O30: -C2 + RB*F4d | Q30: =-U31+J17*P36 -> -3.919161029 | T30: C1 | U30: =J16*O35 -(M6*P37+M7*Q37) -> 45.06661521 | X30: 5.4 | Y30: 0.1682577773 | Z30: 0.9858780243 | AA30: 0.167464985 | AB30: 0.0141219757 | AI30: -36.6183465 | AL30: 7.908306391 | AO30: -28.71004011
T31: C2 | U31: =J16*P35 -(M6*Q37+M7*R37) -> 5.985568534 | X31: 4.5 | Y31: 0.1402148144 | Z31: 0.9901859975 | AA31: 0.1397558241 | AB31: 0.009814002503 | AI31: -34.33133525 | AL31: 5.495841402 | AO31: -28.83549385
X32: 3.6 | Y32: 0.1121718515 | Z32: 0.9937153318 | AA32: 0.1119367653 | AB32: 0.006284668239 | AI32: -32.45768683 | AL32: 3.519414214 | AO32: -28.93827261
M33: F1 | N33: F2 | O33: F3 | P33: F4 | X33: 2.7 | Y33: 0.08412888863 | Z33: 0.9964632518 | AA33: 0.08402968433 | AB33: 0.003536748218 | AI33: -30.99887459 | AL33: 1.980579002 | AO33: -29.01829559
K34: x | L34: kx | M34: cosh | N34: sinh | O34: cosh - 1 | P34: sinh - kx | Q34: Fa5 | R34: Fa6 | X34: 1.8 | Y34: 0.05608592576 | Z34: 0.9984275967 | AA34: 0.05605652611 | AB34: 0.001572403286 | AI34: -29.95604569 | AL34: 0.88054584 | AO34: -29.07549985
J35: b | K35: =B5 -> 11 | L35: =J$5*K35 -> 0.3427473241 | M35: =COSH(L35) -> 1.059315143 | N35: =SINH(L35) -> 0.3494976006 | O35: =M35-1 -> 0.05931514329 | P35: =N35-L35 -> 0.006750276514 | X35: 0.9 | Y35: 0.02804296288 | Z35: 0.9996068219 | AA35: 0.02803928749 | AB35: 0.000393178116 | AI35: -29.33002015 | AL35: 0.2201797449 | AO35: -29.10984041
J36: d = L-b | K36: =B3-B5 -> 9 | L36: =J$5*K36 -> 0.2804296288 | M36: =COSH(L36) -> 1.039578747 | N36: 0.2841196422 | O36: =M36-1 -> 0.03957874693 | P36: =N36-L36 -> 0.003690013402 | X36: 0 | Y36: 0 | Z36: 1 | AA36: 0 | AB36: 0 | AI36: -29.12129026 | AL36: 0 | AO36: -29.12129026
J37: c = b-a | K37: =B12 -> 8 | L37: =J$5*K37 -> 0.2492707811 | M37: =COSH(L37) -> 1.031229164 | N37: 0.251860258 | O37: =M37-1 -> 0.03122916443 | P37: =N37-L37 -> 0.002589476881 | Q37: =O37-L37^2/2 -> 0.0001612032647 | R37: =P37-L37^3/6 -> 8.031898529e-06
J39: Matrix | K39: =M35 -> 1.059315143 | L39: =M36 -> 1.039578747 | M39: Inverse | N39: =MINVERSE(K39:L40) -> 0.4276961698 | O39: 1.564917669 | Q39: =MMULT(N39:O40,Q29:Q30) -> -34.887483 | R39: qA*P | S39: =Q39/B8 -> -0.0009967852285 | T39: qA | U39: =Q39+H28 -> -34.887483 | V39: qb
K40: =N35 -> 0.3494976006 | L40: =-N36 -> -0.2841196422 | N40: 0.5261121124 | O40: -1.594627622 | Q40: -29.12129026 | R40: qB*P | S40: =Q40/B8 -> -0.0008320368646 | T40: qB
AI41: Slope
E42: CASE 2 ss/fixed
E43: yA = yL = 0 | X43: x | Y43: kx | Z43: F1 | AA43: F2 | AB43: F3 | AI43: =Q56*B8 -> 0
E44: MA = qL = 0 | T44: T1 | U44: T2 | X44: 0 | Y44: =X44*J$5 -> 0 | Z44: =COS(Y44) -> 1 | AA44: =SIN(Y44) -> 0 | AB44: =1-Z44 -> 0 | AI44: =K54 -> 790.7226961
E45: RB = W-RA | T45: F1b | U45: (F3b + C5) | V45: = | W45: C1 + C3 | X45: =X44+B$4/10 -> 0.3 | Y45: =X45*J$5 -> 0.009347654293 | Z45: =COS(Y45) -> 0.999956311 | AA45: =SIN(Y45) -> 0.009347518162 | AB45: =1-Z45 -> 4.368900226e-05 | AI45: =AI$44*Z45+AI$43*AB45 -> 790.6881502
T46: F2b | U46: (F4b - C6) | V46: = | W46: C2 - C4 | X46: =X45+B$4/10 -> 0.6 | Y46: 0.01869530859 | Z46: 0.9998252478 | AA46: 0.01869421956 | AB46: 0.0001747521916 | AI46: =AI$44*Z46+AI$43*AB46 -> 790.5845156
E47: Values at b for span 0 to b | K47: see bottom of Calcs1 worksheet | X47: 0.9 | Y47: 0.02804296288 | Z47: 0.9996068219 | AA47: 0.02803928749 | AB47: 0.000393178116 | AI47: 790.4118012
E48: qb*P = qA*P*F1 + RA*F3 - Z1*Fa4 - Z2*Fa5 | J48: Matrix | K48: =M35 -> 1.059315143 | L48: =O35+W52 -> 0.1967932092 | M48: Inverse | N48: =MINVERSE(K48:L49) -> 0.1696461021 | O48: 2.347058502 | Q48: =W48+W50 -> 137.4342241 | R48: =MMULT(N48:O49,Q48:Q49) -> -20.6039287 | S48: qA*P | T48: C1 = Z1*Fa4 + Z2*Fa5 | W48: =M6*P37+M7*Q37 -> 16.62113382 | X48: 1.2 | Y48: 0.03739061717 | Z48: 0.9993010523 | AA48: 0.0373819054 | AB48: 0.0006989476897 | AI48: 790.1700223
E49: yb*k*P = qA*P*F2 + RA*F4 - Z1*Fa5 - Z2*Fa6 | K49: =N35 -> 0.3494976006 | L49: =P35-W53 -> -0.014224273 | N49: 4.168290757 | O49: -12.63394516 | Q49: =W49-W51 -> -18.71240494 | R49: 809.2773039 | S49: RA | T49: C2 = Z1*Fa5 + Z2*Fa6 | W49: =M6*Q37+M7*R37 -> 1.034719041 | X49: 1.5 | Y49: 0.04673827146 | Z49: 0.9989079658 | AA49: 0.04672125696 | AB49: 0.001092034195 | AI49: 789.8591999
T50: C3 = W*((L-Xcg)*k*F2d - F3d) | W50: =B14*((B3-B15)*J5*N36-O36) -> 120.8130903 | X50: 1.8 | Y50: 0.05608592576 | Z50: 0.9984275967 | AA50: 0.05605652611 | AB50: 0.001572403286 | AI50: 789.4793611
T51: C4 = W*((L-Xcg)*k*F3d - F4d) | W51: =B14*((B3-B15)*J5*O36-P36) -> 19.74712398 | X51: 2.1 | Y51: 0.06543358005 | Z51: 0.997859987 | AA51: 0.06538689715 | AB51: 0.002140012987 | AI51: 789.0305393
E52: Values at b for span L to b | T52: C5 = L*k*F2d - F3d | W52: =B3*J5*N36-O36 -> 0.1374780659 | X52: 2.4 | Y52: 0.07478123434 | Z52: 0.9972051863 | AA52: 0.07471155481 | AB52: 0.002794813703 | AG52: =M$6 -> 6418.722614 | AI52: 788.5127735
E53: qb*P = MB*k*F2 + RB*F3 | J53: RA | K53: =R49 -> 809.2773039 | M53: qA | N53: =R48/B8 -> -0.0005886836773 | T53: C6 = L*k*F3d - F4d | W53: =B3*J5*O36-P36 -> 0.02097454951 | X53: 2.7 | Y53: 0.08412888863 | Z53: 0.9964632518 | AA53: 0.08402968433 | AB53: 0.003536748218 | AE53: Fa4 | AF53: Fa5 | AG53: =M$7 -> 0 | AI53: 787.926109
E54: yb*k*P = MB*k*F3 + RB*F4 | J54: RB | K54: =B14-K53 -> 790.7226961 | M54: MB | N54: =K53*B3-B14*(B3-B15) -> -4614.453922 | P54: MB = RA*L - W*(L - Xcg) | X54: 3 | Y54: 0.09347654293 | Z54: 0.9956342483 | AA54: 0.0933404715 | AB54: 0.004365751704 | AD54: 0 | AE54: =AD54-SIN(AD54) -> 0 | AF54: =AD54^2/2-(1-COS(AD54)) -> 0 | AI54: 787.2705971
X55: =X54+B$12/10 -> 3.8 | Y55: 0.118403621 | Z55: 0.9929984768 | AA55: 0.1181271566 | AB55: 0.007001523228 | AD55: =J$5*(X55-B$4) -> 0.02492707811 | AE55: =AD55-SIN(AD55) -> 2.581364784e-06 | AF55: =AD55^2/2-(1-COS(AD55)) -> 1.608663696e-08 | AI55: =AI$44*Z55+AI$43*AB55-AG$13*AE55-AG$14*AF55 -> 785.1698637
X56: =X55+B$12/10 -> 4.6 | Y56: 0.1433306992 | Z56: 0.9897457284 | AA56: 0.1428404461 | AB56: 0.01025427157 | AD56: 0.04985415623 | AE56: 2.064899361e-05 | AF56: 2.573701995e-07 | AI56: =AI$44*Z56+AI$43*AB56-AG$13*AE56-AG$14*AF56 -> 782.4818707
T57: T1 | U57: T2 | X57: 5.4 | Y57: 0.1682577773 | Z57: 0.9858780243 | AA57: 0.167464985 | AB57: 0.0141219757 | AD57: 0.07478123434 | AE57: 6.967952847e-05 | AF57: 1.302801711e-06 | AI57: 779.1088758
E58: CASE 3 fixed/fixed | K58: see bottom of Calcs1 worksheet | T58: (F2b + F2d) | U58: (F3b + C5) | W58: C1 + C3 | X58: 6.2 | Y58: 0.1931848554 | Z58: 0.9813977675 | AA58: 0.1919854733 | AB58: 0.01860223251 | AD58: 0.09970831246 | AE58: 0.0001651303733 | AF58: 4.116899851e-06 | AI58: 774.9535626
E59: yA = yB = 0 | K59: =N35+N36 -> 0.6336172428 | L59: =O35+(B3*J5*N36-O36) -> 0.1967932092 | N59: =MINVERSE(K59:L60) -> 1.102936111 | O59: 15.25915152 | Q59: =W61+W63 -> 137.4342241 | R59: =MMULT(N59:O60,Q59:Q60) -> -133.9542536 | S59: MA*k | T59: (F3b - F3d) | U59: (F4b - C6) | W59: C2 - C4 | X59: 7 | Y59: 0.2181119335 | Z59: 0.9763077417 | AA59: 0.2163866759 | AB59: 0.02369225831 | AD59: 0.1246353906 | AE59: 0.0003224300898 | AF59: 1.004915167e-05 | AI59: 769.9191004
E60: qA = qB = 0 | K60: =O35-O36 -> 0.01973639636 | L60: =P35-(B3*J5*O36-P36) -> -0.014224273 | N60: 1.530340725 | O60: -49.13005661 | Q60: =W62-W64 -> -18.71240494 | R60: 1129.662704 | S60: RA | X60: 7.8 | Y60: 0.2430390116 | Z60: 0.9706111095 | AA60: 0.2406534316 | AB60: 0.02938889051 | AD60: 0.1495624687 | AE60: 0.0005569688113 | AF60: 2.083317412e-05 | AI60: 763.909205
T61: C1 = Z1*Fa4 + Z2*Fa5 | W61: =M6*P37+M7*Q37 -> 16.62113382 | X61: 8.6 | Y61: 0.2679660897 | Z61: 0.9643114103 | AA61: 0.2647706628 | AB61: 0.03568858966 | AD61: 0.1744895468 | AE61: 0.0008840886805 | AF61: 3.85856369e-05 | AI61: 756.8281983
L62: MA | M62: =R59/J5 -> -4299.075985 | O62: MB | P62: =(R59+R60*J5*B3-B14*J5*(B3-B15))/J5 -> -2505.821897 | T62: C2 = Z1*Fa5 + Z2*Fa6 | W62: =M6*Q37+M7*R37 -> 1.034719041 | X62: 9.4 | Y62: 0.2928931678 | Z62: 0.9574125584 | AA62: 0.2887233848 | AB62: 0.04258744156 | AD62: 0.1994166249 | AE62: 0.001319074317 | AF62: 6.580494734e-05 | AI62: 748.5810673
O63: RB | P63: =B14-R60 -> 470.3372956 | T63: C3 = W*((L-Xcg)*k*F2d - F3d) | W63: =B14*((B3-B15)*J5*N36-O36) -> 120.8130903 | X63: 10.2 | Y63: 0.317820246 | Z63: 0.9499188402 | AA63: 0.3124967152 | AB63: 0.05008115979 | AD63: 0.224343703 | AE63: 0.00187714332 | AF63: 0.000105369698 | AI63: 739.0735241
T64: C4 = W*((L-Xcg)*k*F3d - F4d) | W64: =B14*((B3-B15)*J5*O36-P36) -> 19.74712398 | X64: 11 | Y64: 0.3427473241 | Z64: 0.9418349117 | AA64: 0.3360758829 | AB64: 0.05816508829 | AD64: 0.2492707811 | AE64: 0.002573436814 | AF64: 0.0001605368784 | AI64: 728.2120636
E65: CASE4 free/fixed (cantilever) | X65: =K36 -> 9 | Y65: 0.2804296288 | Z65: 0.9609366193 | AA65: 0.2767685201 | AB65: 0.03906338072 | AI65: =-(V$67*AA65+V$66*AB65) -> -31.62224274
E66: yB = qB = 0 | J66: MB = W*(L - Xcg) | L66: =-B14*(B3-B15) -> -20800 | N66: RB = W | O66: =B14 -> 1600 | Q66: MB*k | R66: =L66*J5 -> -648.104031 | V66: =K53 -> 809.2773039 | X66: =B$3-(X64+K$36/10) -> 8.1 | Y66: 0.2523866659 | Z66: 0.9683191921 | AA66: 0.2497157227 | AB66: 0.03168080787 | AI66: -25.64680115
E67: RA = MA = 0 | V67: =K48*J5 -> 0.03300703916 | X67: =X66-K$36/10 -> 7.2 | Y67: 0.224343703 | Z67: 0.9749403212 | AA67: 0.2224665597 | AB67: 0.02505967885 | AI67: -20.2875723
J68: yb*k*P = yA*k*P + qA*P*F2 - Z1*Fa5 - Z2*Fa6 | X68: 6.3 | Y68: 0.1963007401 | Z68: 0.9807947998 | AA68: 0.1950424588 | AB68: 0.01920520022 | AI68: -15.54877043
J69: qb*P = qA*P*F1 - Z1*Fa4 - Z2*Fa5 | X69: 5.4 | Y69: 0.1682577773 | Z69: 0.9858780243 | AA69: 0.167464985 | AB69: 0.0141219757 | AI69: -11.43412194
X70: 4.5 | Y70: 0.1402148144 | Z70: 0.9901859975 | AA70: 0.1397558241 | AB70: 0.009814002503 | AI70: -7.946862412
O71: at b | X71: 3.6 | Y71: 0.1121718515 | Z71: 0.9937153318 | AA71: 0.1119367653 | AB71: 0.006284668239 | AI71: -5.089734069
J72: yb*k*P = RB*F4d + Mb*k*F3d | O72: F4d | P72: =P36 -> 0.003690013402 | Q72: RB | R72: =O66 -> 1600 | S72: =P72*R72 -> 5.904021443 | X72: 2.7 | Y72: 0.08412888863 | Z72: 0.9964632518 | AA72: 0.08402968433 | AB72: 0.003536748218 | AI72: -2.864983634
O73: F3d | P73: =O36 -> 0.03957874693 | Q73: MB*k | R73: =R66 -> -648.104031 | S73: =P73*R73 -> -25.65114543 | X73: 1.8 | Y73: 0.05608592576 | Z73: 0.9984275967 | AA73: 0.05605652611 | AB73: 0.001572403286 | AI73: -1.274360552
J74: qb*P = MB*k*F2d + RB*F3d | R74: C1 = | S74: =S72+S73 -> -19.74712398 | X74: 0.9 | Y74: 0.02804296288 | Z74: 0.9996068219 | AA74: 0.02803928749 | AB74: 0.000393178116 | AI74: =-(V$67*AA74+V$66*AB74) -> -0.3191156195
X75: 0 | Y75: 0 | Z75: 1 | AA75: 0 | AB75: 0 | AI75: =-(V$67*AA75+V$66*AB75) -> 0
J76: - Z1*FA5 - Z2*FA6 | L76: S1 | M76: =-M6*Q37-M7*R37 -> -1.034719041 | O76: F2d | P76: =N36 -> 0.2841196422 | Q76: MB*k | R76: =R73 -> -648.104031 | S76: =P76*R76 -> -184.1390854
J77: - Z1*FA4 - Z2*FA5 | L77: S2 | M77: =-M6*P37-M7*Q37 -> -16.62113382 | O77: F3d | P77: =P73 -> 0.03957874693 | Q77: RB | R77: =R72 -> 1600 | S77: 63.32599509
R78: C2 = | S78: =S76+S77 -> -120.8130903
J79: Let T1 = yA*k*P | M79: T1 + T2*F2b + S1 = C1
J80: T2 = qA*P | M80: T2*F1b + S2 = C2
J82: T2 = (C2 - S2)/F1b | L82: =(-S78-M77)/M35 -> 129.7387515 | M82: qA*P | O82: qA | P82: =L82/B8 -> 0.00370682147
J83: T1 = C1 - T2*F2b - S1 | L83: =S74-L82*N35-M76 -> -64.05578728 | M83: yA*k*P | O83: yA | P83: =L83/(J5*B8) -> -0.05873661863
